Workbook

Sheet ResourceLevelConfig
A1: ID | B1: Level | C1: value1 | D1: value2 | E1: value3 | F1: value4 | G1: value5 | H1: value6 | M1: value7 | O1: value8 | Q1: value9 | S1: value10 | U1: value11
A2: int | B2: int | C2: float | D2: float | E2: float | F2: float | G2: float | H2: float | M2: int | O2: int | Q2: int | S2: int | U2: int
J3: 0.5
B4: 等级 | C4: 1001 铜钱 | D4: 1002 银锭 | E4: 1003 修为 | F4: 1004 金锭 | G4: 1005 功法灵气 | H4: 1006 法宝灵韵 | J4: 1.005 | K4: =I304 -> 5396.053976 | L4: 升级份数 | M4: 动态道具 23300 | O4: 动态道具 23301 | Q4: 动态道具 23302 | S4: 动态道具 23303 | U4: 动态道具 23304
A5: 1 | B5: 1 | C5: 1000 | D5: 100 | E5: 100 | F5: 100 | G5: =H5 -> 50 | H5: 50 | I5: 1000 | L5: 4 | M5: 1201 | N5: =VLOOKUP(M5,[1]ItemConfig!$A:$C,3,FALSE) -> 灵血草 | O5: 1201 | P5: =VLOOKUP(O5,[1]ItemConfig!$A:$C,3,FALSE) -> 灵血草 | Q5: 1201 | R5: =VLOOKUP(Q5,[1]ItemConfig!$A:$C,3,FALSE) -> 灵血草 | S5: 1201 | T5: =VLOOKUP(S5,[1]ItemConfig!$A:$C,3,FALSE) -> 灵血草 | U5: 1201 | V5: =VLOOKUP(U5,[1]ItemConfig!$A:$C,3,FALSE) -> 灵血草 | Y5: 1201 | Z5: 灵血草
A6: 2 | B6: 2 | C6: =ROUND($I6*C$5/$I$5,0) -> 1010 | D6: 101 | E6: =ROUND($I6*E$5/$I$5*0.1,0)*10 -> 100 | F6: 101 | G6: =H6 -> 50.5 | H6: =H5+J$3 -> 50.5 | I6: =MAX(I5+I$5*0.01,I5*$J$4) -> 1010 | L6: 4.1 | M6: 1201 | N6: =VLOOKUP(M6,[1]ItemConfig!$A:$C,3,FALSE) -> 灵血草 | O6: 1201 | P6: =VLOOKUP(O6,[1]ItemConfig!$A:$C,3,FALSE) -> 灵血草 | Q6: 1201 | R6: =VLOOKUP(Q6,[1]ItemConfig!$A:$C,3,FALSE) -> 灵血草 | S6: 1201 | T6: =VLOOKUP(S6,[1]ItemConfig!$A:$C,3,FALSE) -> 灵血草 | U6: 1201 | V6: =VLOOKUP(U6,[1]ItemConfig!$A:$C,3,FALSE) -> 灵血草 | Y6: 1202 | Z6: 玄玉髓
A7: 3 | B7: 3 | C7: 1020 | D7: 102 | E7: =ROUND($I7*E$5/$I$5*0.1,0)*10 -> 100 | F7: 102 | G7: 51 | H7: =H6+J$3 -> 51 | I7: 1020 | L7: 4.2 | M7: 1201 | N7: =VLOOKUP(M7,[1]ItemConfig!$A:$C,3,FALSE) -> 灵血草 | O7: 1201 | P7: =VLOOKUP(O7,[1]ItemConfig!$A:$C,3,FALSE) -> 灵血草 | Q7: 1201 | R7: =VLOOKUP(Q7,[1]ItemConfig!$A:$C,3,FALSE) -> 灵血草 | S7: 1201 | T7: =VLOOKUP(S7,[1]ItemConfig!$A:$C,3,FALSE) -> 灵血草 | U7: 1201 | V7: =VLOOKUP(U7,[1]ItemConfig!$A:$C,3,FALSE) -> 灵血草 | Y7: 1203 | Z7: 赤阳砂
A8: 4 | B8: 4 | C8: 1030 | D8: 103 | E8: 100 | F8: 103 | G8: 51.5 | H8: 51.5 | I8: 1030 | L8: 4.3 | M8: 1201 | N8: =VLOOKUP(M8,[1]ItemConfig!$A:$C,3,FALSE) -> 灵血草 | O8: 1201 | P8: =VLOOKUP(O8,[1]ItemConfig!$A:$C,3,FALSE) -> 灵血草 | Q8: 1201 | R8: =VLOOKUP(Q8,[1]ItemConfig!$A:$C,3,FALSE) -> 灵血草 | S8: 1201 | T8: =VLOOKUP(S8,[1]ItemConfig!$A:$C,3,FALSE) -> 灵血草 | U8: 1201 | V8: =VLOOKUP(U8,[1]ItemConfig!$A:$C,3,FALSE) -> 灵血草 | Y8: 1204 | Z8: 火灵果
A9: 5 | B9: 5 | C9: 1040 | D9: 104 | E9: 100 | F9: 104 | G9: 52 | H9: 52 | I9: 1040 | L9: 4.4 | M9: 1201 | N9: =VLOOKUP(M9,[1]ItemConfig!$A:$C,3,FALSE) -> 灵血草 | O9: 1201 | P9: =VLOOKUP(O9,[1]ItemConfig!$A:$C,3,FALSE) -> 灵血草 | Q9: 1201 | R9: =VLOOKUP(Q9,[1]ItemConfig!$A:$C,3,FALSE) -> 灵血草 | S9: 1201 | T9: =VLOOKUP(S9,[1]ItemConfig!$A:$C,3,FALSE) -> 灵血草 | U9: 1201 | V9: =VLOOKUP(U9,[1]ItemConfig!$A:$C,3,FALSE) -> 灵血草 | Y9: 1205 | Z9: 婴魂草
A10: 6 | B10: 6 | C10: 1050 | D10: 105 | E10: 110 | F10: 105 | G10: 52.5 | H10: 52.5 | I10: 1050 | L10: 4.5 | M10: 1201 | N10: =VLOOKUP(M10,[1]ItemConfig!$A:$C,3,FALSE) -> 灵血草 | O10: 1201 | P10: =VLOOKUP(O10,[1]ItemConfig!$A:$C,3,FALSE) -> 灵血草 | Q10: 1201 | R10: =VLOOKUP(Q10,[1]ItemConfig!$A:$C,3,FALSE) -> 灵血草 | S10: 1201 | T10: =VLOOKUP(S10,[1]ItemConfig!$A:$C,3,FALSE) -> 灵血草 | U10: 1201 | V10: =VLOOKUP(U10,[1]ItemConfig!$A:$C,3,FALSE) -> 灵血草 | Y10: 1206 | Z10: 灵魄藤
A11: 7 | B11: 7 | C11: 1060 | D11: 106 | E11: 110 | F11: 106 | G11: 53 | H11: 53 | I11: 1060 | L11: 4.6 | M11: 1201 | N11: =VLOOKUP(M11,[1]ItemConfig!$A:$C,3,FALSE) -> 灵血草 | O11: 1201 | P11: =VLOOKUP(O11,[1]ItemConfig!$A:$C,3,FALSE) -> 灵血草 | Q11: 1201 | R11: =VLOOKUP(Q11,[1]ItemConfig!$A:$C,3,FALSE) -> 灵血草 | S11: 1201 | T11: =VLOOKUP(S11,[1]ItemConfig!$A:$C,3,FALSE) -> 灵血草 | U11: 1201 | V11: =VLOOKUP(U11,[1]ItemConfig!$A:$C,3,FALSE) -> 灵血草 | Y11: 1207 | Z11: 灵冥石
A12: 8 | B12: 8 | C12: 1070 | D12: 107 | E12: 110 | F12: 107 | G12: 53.5 | H12: 53.5 | I12: 1070 | L12: 4.7 | M12: 1201 | N12: =VLOOKUP(M12,[1]ItemConfig!$A:$C,3,FALSE) -> 灵血草 | O12: 1201 | P12: =VLOOKUP(O12,[1]ItemConfig!$A:$C,3,FALSE) -> 灵血草 | Q12: 1201 | R12: =VLOOKUP(Q12,[1]ItemConfig!$A:$C,3,FALSE) -> 灵血草 | S12: 1201 | T12: =VLOOKUP(S12,[1]ItemConfig!$A:$C,3,FALSE) -> 灵血草 | U12: 1201 | V12: =VLOOKUP(U12,[1]ItemConfig!$A:$C,3,FALSE) -> 灵血草 | Y12: 1208 | Z12: 玄金砂
A13: 9 | B13: 9 | C13: 1080 | D13: 108 | E13: 110 | F13: 108 | G13: 54 | H13: 54 | I13: 1080 | L13: 4.8 | M13: 1201 | N13: =VLOOKUP(M13,[1]ItemConfig!$A:$C,3,FALSE) -> 灵血草 | O13: 1201 | P13: =VLOOKUP(O13,[1]ItemConfig!$A:$C,3,FALSE) -> 灵血草 | Q13: 1201 | R13: =VLOOKUP(Q13,[1]ItemConfig!$A:$C,3,FALSE) -> 灵血草 | S13: 1201 | T13: =VLOOKUP(S13,[1]ItemConfig!$A:$C,3,FALSE) -> 灵血草 | U13: 1201 | V13: =VLOOKUP(U13,[1]ItemConfig!$A:$C,3,FALSE) -> 灵血草 | Y13: 1209 | Z13: 紫玄晶
A14: 10 | B14: 10 | C14: 1090 | D14: 109 | E14: 110 | F14: 109 | G14: 54.5 | H14: 54.5 | I14: 1090 | L14: 4.9 | M14: 1201 | N14: =VLOOKUP(M14,[1]ItemConfig!$A:$C,3,FALSE) -> 灵血草 | O14: 1201 | P14: =VLOOKUP(O14,[1]ItemConfig!$A:$C,3,FALSE) -> 灵血草 | Q14: 1201 | R14: =VLOOKUP(Q14,[1]ItemConfig!$A:$C,3,FALSE) -> 灵血草 | S14: 1201 | T14: =VLOOKUP(S14,[1]ItemConfig!$A:$C,3,FALSE) -> 灵血草 | U14: 1201 | V14: =VLOOKUP(U14,[1]ItemConfig!$A:$C,3,FALSE) -> 灵血草 | Y14: 1210 | Z14: 丹心花
A15: 11 | B15: 11 | C15: 1100 | D15: 110 | E15: 110 | F15: 110 | G15: 55 | H15: 55 | I15: 1100 | L15: 5 | M15: 1201 | N15: =VLOOKUP(M15,[1]ItemConfig!$A:$C,3,FALSE) -> 灵血草 | O15: 1201 | P15: =VLOOKUP(O15,[1]ItemConfig!$A:$C,3,FALSE) -> 灵血草 | Q15: 1201 | R15: =VLOOKUP(Q15,[1]ItemConfig!$A:$C,3,FALSE) -> 灵血草 | S15: 1201 | T15: =VLOOKUP(S15,[1]ItemConfig!$A:$C,3,FALSE) -> 灵血草 | U15: 1201 | V15: =VLOOKUP(U15,[1]ItemConfig!$A:$C,3,FALSE) -> 灵血草 | Y15: 1211 | Z15: 太冥草
A16: 12 | B16: 12 | C16: =ROUND($I16*C$5/$I$5,0) -> 1110 | D16: 111 | E16: 110 | F16: 111 | G16: 55.5 | H16: 55.5 | I16: 1110 | L16: 5.1 | M16: 1201 | N16: =VLOOKUP(M16,[1]ItemConfig!$A:$C,3,FALSE) -> 灵血草 | O16: 1201 | P16: =VLOOKUP(O16,[1]ItemConfig!$A:$C,3,FALSE) -> 灵血草 | Q16: 1201 | R16: =VLOOKUP(Q16,[1]ItemConfig!$A:$C,3,FALSE) -> 灵血草 | S16: 1201 | T16: =VLOOKUP(S16,[1]ItemConfig!$A:$C,3,FALSE) -> 灵血草 | U16: 1201 | V16: =VLOOKUP(U16,[1]ItemConfig!$A:$C,3,FALSE) -> 灵血草 | Y16: 1212 | Z16: 星炎草
A17: 13 | B17: 13 | C17: 1120 | D17: 112 | E17: 110 | F17: 112 | G17: 56 | H17: 56 | I17: 1120 | L17: 5.2 | M17: 1201 | N17: =VLOOKUP(M17,[1]ItemConfig!$A:$C,3,FALSE) -> 灵血草 | O17: 1201 | P17: =VLOOKUP(O17,[1]ItemConfig!$A:$C,3,FALSE) -> 灵血草 | Q17: 1201 | R17: =VLOOKUP(Q17,[1]ItemConfig!$A:$C,3,FALSE) -> 灵血草 | S17: 1201 | T17: =VLOOKUP(S17,[1]ItemConfig!$A:$C,3,FALSE) -> 灵血草 | U17: 1201 | V17: =VLOOKUP(U17,[1]ItemConfig!$A:$C,3,FALSE) -> 灵血草 | Y17: 1213 | Z17: 混元晶
A18: 14 | B18: 14 | C18: 1130 | D18: 113 | E18: 110 | F18: 113 | G18: 56.5 | H18: 56.5 | I18: 1130 | L18: 5.3 | M18: 1201 | N18: =VLOOKUP(M18,[1]ItemConfig!$A:$C,3,FALSE) -> 灵血草 | O18: 1201 | P18: =VLOOKUP(O18,[1]ItemConfig!$A:$C,3,FALSE) -> 灵血草 | Q18: 1201 | R18: =VLOOKUP(Q18,[1]ItemConfig!$A:$C,3,FALSE) -> 灵血草 | S18: 1201 | T18: =VLOOKUP(S18,[1]ItemConfig!$A:$C,3,FALSE) -> 灵血草 | U18: 1201 | V18: =VLOOKUP(U18,[1]ItemConfig!$A:$C,3,FALSE) -> 灵血草 | Y18: 1214 | Z18: 地髓晶
A19: 15 | B19: 15 | C19: 1140 | D19: 114 | E19: 110 | F19: 114 | G19: 57 | H19: 57 | I19: 1140 | L19: 5.4 | M19: 1201 | N19: =VLOOKUP(M19,[1]ItemConfig!$A:$C,3,FALSE) -> 灵血草 | O19: 1201 | P19: =VLOOKUP(O19,[1]ItemConfig!$A:$C,3,FALSE) -> 灵血草 | Q19: 1201 | R19: =VLOOKUP(Q19,[1]ItemConfig!$A:$C,3,FALSE) -> 灵血草 | S19: 1201 | T19: =VLOOKUP(S19,[1]ItemConfig!$A:$C,3,FALSE) -> 灵血草 | U19: 1201 | V19: =VLOOKUP(U19,[1]ItemConfig!$A:$C,3,FALSE) -> 灵血草 | Y19: 1215 | Z19: 灵月石
A20: 16 | B20: 16 | C20: 1150 | D20: 115 | E20: 120 | F20: 115 | G20: 57.5 | H20: 57.5 | I20: 1150 | L20: 5.5 | M20: 1201 | N20: =VLOOKUP(M20,[1]ItemConfig!$A:$C,3,FALSE) -> 灵血草 | O20: 1201 | P20: =VLOOKUP(O20,[1]ItemConfig!$A:$C,3,FALSE) -> 灵血草 | Q20: 1201 | R20: =VLOOKUP(Q20,[1]ItemConfig!$A:$C,3,FALSE) -> 灵血草 | S20: 1201 | T20: =VLOOKUP(S20,[1]ItemConfig!$A:$C,3,FALSE) -> 灵血草 | U20: 1201 | V20: =VLOOKUP(U20,[1]ItemConfig!$A:$C,3,FALSE) -> 灵血草 | Y20: 1216 | Z20: 玄雷果
A21: 17 | B21: 17 | C21: 1160 | D21: 116 | E21: 120 | F21: 116 | G21: 58 | H21: 58 | I21: 1160 | L21: 5.6 | M21: 1201 | N21: =VLOOKUP(M21,[1]ItemConfig!$A:$C,3,FALSE) -> 灵血草 | O21: 1201 | P21: =VLOOKUP(O21,[1]ItemConfig!$A:$C,3,FALSE) -> 灵血草 | Q21: 1201 | R21: =VLOOKUP(Q21,[1]ItemConfig!$A:$C,3,FALSE) -> 灵血草 | S21: 1201 | T21: =VLOOKUP(S21,[1]ItemConfig!$A:$C,3,FALSE) -> 灵血草 | U21: 1201 | V21: =VLOOKUP(U21,[1]ItemConfig!$A:$C,3,FALSE) -> 灵血草 | Y21: 1217 | Z21: 龙筋草
A22: 18 | B22: 18 | C22: 1170 | D22: 117 | E22: 120 | F22: 117 | G22: 58.5 | H22: 58.5 | I22: 1170 | L22: 5.7 | M22: 1201 | N22: =VLOOKUP(M22,[1]ItemConfig!$A:$C,3,FALSE) -> 灵血草 | O22: 1201 | P22: =VLOOKUP(O22,[1]ItemConfig!$A:$C,3,FALSE) -> 灵血草 | Q22: 1201 | R22: =VLOOKUP(Q22,[1]ItemConfig!$A:$C,3,FALSE) -> 灵血草 | S22: 1201 | T22: =VLOOKUP(S22,[1]ItemConfig!$A:$C,3,FALSE) -> 灵血草 | U22: 1201 | V22: =VLOOKUP(U22,[1]ItemConfig!$A:$C,3,FALSE) -> 灵血草 | Y22: 1218 | Z22: 太虚花
A23: 19 | B23: 19 | C23: 1180 | D23: 118 | E23: 120 | F23: 118 | G23: 59 | H23: 59 | I23: 1180 | L23: 5.8 | M23: 1201 | N23: =VLOOKUP(M23,[1]ItemConfig!$A:$C,3,FALSE) -> 灵血草 | O23: 1201 | P23: =VLOOKUP(O23,[1]ItemConfig!$A:$C,3,FALSE) -> 灵血草 | Q23: 1201 | R23: =VLOOKUP(Q23,[1]ItemConfig!$A:$C,3,FALSE) -> 灵血草 | S23: 1201 | T23: =VLOOKUP(S23,[1]ItemConfig!$A:$C,3,FALSE) -> 灵血草 | U23: 1201 | V23: =VLOOKUP(U23,[1]ItemConfig!$A:$C,3,FALSE) -> 灵血草 | Y23: 1219 | Z23: 升仙丹
A24: 20 | B24: 20 | C24: 1190 | D24: 119 | E24: 120 | F24: 119 | G24: 59.5 | H24: 59.5 | I24: 1190 | L24: 5.9 | M24: 1201 | N24: =VLOOKUP(M24,[1]ItemConfig!$A:$C,3,FALSE) -> 灵血草 | O24: 1201 | P24: =VLOOKUP(O24,[1]ItemConfig!$A:$C,3,FALSE) -> 灵血草 | Q24: 1201 | R24: =VLOOKUP(Q24,[1]ItemConfig!$A:$C,3,FALSE) -> 灵血草 | S24: 1201 | T24: =VLOOKUP(S24,[1]ItemConfig!$A:$C,3,FALSE) -> 灵血草 | U24: 1201 | V24: =VLOOKUP(U24,[1]ItemConfig!$A:$C,3,FALSE) -> 灵血草 | Y24: 1220 | Z24: 归虚花
A25: 21 | B25: 21 | C25: 1200 | D25: 120 | E25: 120 | F25: 120 | G25: 60 | H25: 60 | I25: 1200 | L25: 6 | M25: 1201 | N25: =VLOOKUP(M25,[1]ItemConfig!$A:$C,3,FALSE) -> 灵血草 | O25: 1201 | P25: =VLOOKUP(O25,[1]ItemConfig!$A:$C,3,FALSE) -> 灵血草 | Q25: 1201 | R25: =VLOOKUP(Q25,[1]ItemConfig!$A:$C,3,FALSE) -> 灵血草 | S25: 1201 | T25: =VLOOKUP(S25,[1]ItemConfig!$A:$C,3,FALSE) -> 灵血草 | U25: 1201 | V25: =VLOOKUP(U25,[1]ItemConfig!$A:$C,3,FALSE) -> 灵血草 | Y25: 1221 | Z25: 真阳骨
A26: 22 | B26: 22 | C26: =ROUND($I26*C$5/$I$5,0) -> 1210 | D26: 121 | E26: 120 | F26: 121 | G26: 60.5 | H26: 60.5 | I26: 1210 | L26: 6.1 | M26: 1201 | N26: =VLOOKUP(M26,[1]ItemConfig!$A:$C,3,FALSE) -> 灵血草 | O26: 1201 | P26: =VLOOKUP(O26,[1]ItemConfig!$A:$C,3,FALSE) -> 灵血草 | Q26: 1201 | R26: =VLOOKUP(Q26,[1]ItemConfig!$A:$C,3,FALSE) -> 灵血草 | S26: 1201 | T26: =VLOOKUP(S26,[1]ItemConfig!$A:$C,3,FALSE) -> 灵血草 | U26: 1201 | V26: =VLOOKUP(U26,[1]ItemConfig!$A:$C,3,FALSE) -> 灵血草 | Y26: 1222 | Z26: 太玄髓
A27: 23 | B27: 23 | C27: 1220 | D27: 122 | E27: 120 | F27: 122 | G27: 61 | H27: 61 | I27: 1220 | L27: 6.2 | M27: 1201 | N27: =VLOOKUP(M27,[1]ItemConfig!$A:$C,3,FALSE) -> 灵血草 | O27: 1201 | P27: =VLOOKUP(O27,[1]ItemConfig!$A:$C,3,FALSE) -> 灵血草 | Q27: 1201 | R27: =VLOOKUP(Q27,[1]ItemConfig!$A:$C,3,FALSE) -> 灵血草 | S27: 1201 | T27: =VLOOKUP(S27,[1]ItemConfig!$A:$C,3,FALSE) -> 灵血草 | U27: 1201 | V27: =VLOOKUP(U27,[1]ItemConfig!$A:$C,3,FALSE) -> 灵血草 | Y27: 1223 | Z27: 离魄花
A28: 24 | B28: 24 | C28: 1230 | D28: 123 | E28: 120 | F28: 123 | G28: 61.5 | H28: 61.5 | I28: 1230 | L28: 6.3 | M28: 1201 | N28: =VLOOKUP(M28,[1]ItemConfig!$A:$C,3,FALSE) -> 灵血草 | O28: 1201 | P28: =VLOOKUP(O28,[1]ItemConfig!$A:$C,3,FALSE) -> 灵血草 | Q28: 1201 | R28: =VLOOKUP(Q28,[1]ItemConfig!$A:$C,3,FALSE) -> 灵血草 | S28: 1201 | T28: =VLOOKUP(S28,[1]ItemConfig!$A:$C,3,FALSE) -> 灵血草 | U28: 1201 | V28: =VLOOKUP(U28,[1]ItemConfig!$A:$C,3,FALSE) -> 灵血草 | Y28: 1224 | Z28: 裂界藤
A29: 25 | B29: 25 | C29: 1240 | D29: 124 | E29: 120 | F29: 124 | G29: 62 | H29: 62 | I29: 1240 | L29: 6.4 | M29: 1201 | N29: =VLOOKUP(M29,[1]ItemConfig!$A:$C,3,FALSE) -> 灵血草 | O29: 1201 | P29: =VLOOKUP(O29,[1]ItemConfig!$A:$C,3,FALSE) -> 灵血草 | Q29: 1201 | R29: =VLOOKUP(Q29,[1]ItemConfig!$A:$C,3,FALSE) -> 灵血草 | S29: 1201 | T29: =VLOOKUP(S29,[1]ItemConfig!$A:$C,3,FALSE) -> 灵血草 | U29: 1201 | V29: =VLOOKUP(U29,[1]ItemConfig!$A:$C,3,FALSE) -> 灵血草 | Y29: 1225 | Z29: 寂灭沙
A30: 26 | B30: 26 | C30: 1250 | D30: 125 | E30: 130 | F30: 125 | G30: 62.5 | H30: 62.5 | I30: 1250 | L30: 6.5 | M30: 1201 | N30: =VLOOKUP(M30,[1]ItemConfig!$A:$C,3,FALSE) -> 灵血草 | O30: 1201 | P30: =VLOOKUP(O30,[1]ItemConfig!$A:$C,3,FALSE) -> 灵血草 | Q30: 1201 | R30: =VLOOKUP(Q30,[1]ItemConfig!$A:$C,3,FALSE) -> 灵血草 | S30: 1201 | T30: =VLOOKUP(S30,[1]ItemConfig!$A:$C,3,FALSE) -> 灵血草 | U30: 1201 | V30: =VLOOKUP(U30,[1]ItemConfig!$A:$C,3,FALSE) -> 灵血草 | Y30: 1226 | Z30: 天罡心核
A31: 27 | B31: 27 | C31: 1260 | D31: 126 | E31: 130 | F31: 126 | G31: 63 | H31: 63 | I31: 1260 | L31: 6.6 | M31: 1201 | N31: =VLOOKUP(M31,[1]ItemConfig!$A:$C,3,FALSE) -> 灵血草 | O31: 1201 | P31: =VLOOKUP(O31,[1]ItemConfig!$A:$C,3,FALSE) -> 灵血草 | Q31: 1201 | R31: =VLOOKUP(Q31,[1]ItemConfig!$A:$C,3,FALSE) -> 灵血草 | S31: 1201 | T31: =VLOOKUP(S31,[1]ItemConfig!$A:$C,3,FALSE) -> 灵血草 | U31: 1201 | V31: =VLOOKUP(U31,[1]ItemConfig!$A:$C,3,FALSE) -> 灵血草
A32: 28 | B32: 28 | C32: 1270 | D32: 127 | E32: 130 | F32: 127 | G32: 63.5 | H32: 63.5 | I32: 1270 | L32: 6.7 | M32: 1201 | N32: =VLOOKUP(M32,[1]ItemConfig!$A:$C,3,FALSE) -> 灵血草 | O32: 1201 | P32: =VLOOKUP(O32,[1]ItemConfig!$A:$C,3,FALSE) -> 灵血草 | Q32: 1201 | R32: =VLOOKUP(Q32,[1]ItemConfig!$A:$C,3,FALSE) -> 灵血草 | S32: 1201 | T32: =VLOOKUP(S32,[1]ItemConfig!$A:$C,3,FALSE) -> 灵血草 | U32: 1201 | V32: =VLOOKUP(U32,[1]ItemConfig!$A:$C,3,FALSE) -> 灵血草
A33: 29 | B33: 29 | C33: 1280 | D33: 128 | E33: 130 | F33: 128 | G33: 64 | H33: 64 | I33: 1280 | L33: 6.8 | M33: 1201 | N33: =VLOOKUP(M33,[1]ItemConfig!$A:$C,3,FALSE) -> 灵血草 | O33: 1201 | P33: =VLOOKUP(O33,[1]ItemConfig!$A:$C,3,FALSE) -> 灵血草 | Q33: 1201 | R33: =VLOOKUP(Q33,[1]ItemConfig!$A:$C,3,FALSE) -> 灵血草 | S33: 1201 | T33: =VLOOKUP(S33,[1]ItemConfig!$A:$C,3,FALSE) -> 灵血草 | U33: 1201 | V33: =VLOOKUP(U33,[1]ItemConfig!$A:$C,3,FALSE) -> 灵血草
A34: 30 | B34: 30 | C34: 1290 | D34: 129 | E34: 130 | F34: 129 | G34: 64.5 | H34: 64.5 | I34: 1290 | L34: 6.9 | M34: 1201 | N34: =VLOOKUP(M34,[1]ItemConfig!$A:$C,3,FALSE) -> 灵血草 | O34: 1201 | P34: =VLOOKUP(O34,[1]ItemConfig!$A:$C,3,FALSE) -> 灵血草 | Q34: 1201 | R34: =VLOOKUP(Q34,[1]ItemConfig!$A:$C,3,FALSE) -> 灵血草 | S34: 1201 | T34: =VLOOKUP(S34,[1]ItemConfig!$A:$C,3,FALSE) -> 灵血草 | U34: 1201 | V34: =VLOOKUP(U34,[1]ItemConfig!$A:$C,3,FALSE) -> 灵血草
A35: 31 | B35: 31 | C35: 1300 | D35: 130 | E35: 130 | F35: 130 | G35: 65 | H35: 65 | I35: 1300 | L35: 7 | M35: 1202 | N35: =VLOOKUP(M35,[1]ItemConfig!$A:$C,3,FALSE) -> 玄玉髓 | O35: 1202 | P35: =VLOOKUP(O35,[1]ItemConfig!$A:$C,3,FALSE) -> 玄玉髓 | Q35: 1202 | R35: =VLOOKUP(Q35,[1]ItemConfig!$A:$C,3,FALSE) -> 玄玉髓 | S35: 1202 | T35: =VLOOKUP(S35,[1]ItemConfig!$A:$C,3,FALSE) -> 玄玉髓 | U35: 1202 | V35: =VLOOKUP(U35,[1]ItemConfig!$A:$C,3,FALSE) -> 玄玉髓
A36: 32 | B36: 32 | C36: =ROUND($I36*C$5/$I$5,0) -> 1310 | D36: 131 | E36: 130 | F36: 131 | G36: 65.5 | H36: 65.5 | I36: 1310 | L36: 7.1 | M36: 1202 | N36: =VLOOKUP(M36,[1]ItemConfig!$A:$C,3,FALSE) -> 玄玉髓 | O36: 1202 | P36: =VLOOKUP(O36,[1]ItemConfig!$A:$C,3,FALSE) -> 玄玉髓 | Q36: 1202 | R36: =VLOOKUP(Q36,[1]ItemConfig!$A:$C,3,FALSE) -> 玄玉髓 | S36: 1202 | T36: =VLOOKUP(S36,[1]ItemConfig!$A:$C,3,FALSE) -> 玄玉髓 | U36: 1202 | V36: =VLOOKUP(U36,[1]ItemConfig!$A:$C,3,FALSE) -> 玄玉髓
A37: 33 | B37: 33 | C37: 1320 | D37: 132 | E37: 130 | F37: 132 | G37: 66 | H37: 66 | I37: 1320 | L37: 7.2 | M37: 1202 | N37: =VLOOKUP(M37,[1]ItemConfig!$A:$C,3,FALSE) -> 玄玉髓 | O37: 1202 | P37: =VLOOKUP(O37,[1]ItemConfig!$A:$C,3,FALSE) -> 玄玉髓 | Q37: 1202 | R37: =VLOOKUP(Q37,[1]ItemConfig!$A:$C,3,FALSE) -> 玄玉髓 | S37: 1202 | T37: =VLOOKUP(S37,[1]ItemConfig!$A:$C,3,FALSE) -> 玄玉髓 | U37: 1202 | V37: =VLOOKUP(U37,[1]ItemConfig!$A:$C,3,FALSE) -> 玄玉髓
A38: 34 | B38: 34 | C38: 1330 | D38: 133 | E38: 130 | F38: 133 | G38: 66.5 | H38: 66.5 | I38: 1330 | L38: 7.3 | M38: 1202 | N38: =VLOOKUP(M38,[1]ItemConfig!$A:$C,3,FALSE) -> 玄玉髓 | O38: 1202 | P38: =VLOOKUP(O38,[1]ItemConfig!$A:$C,3,FALSE) -> 玄玉髓 | Q38: 1202 | R38: =VLOOKUP(Q38,[1]ItemConfig!$A:$C,3,FALSE) -> 玄玉髓 | S38: 1202 | T38: =VLOOKUP(S38,[1]ItemConfig!$A:$C,3,FALSE) -> 玄玉髓 | U38: 1202 | V38: =VLOOKUP(U38,[1]ItemConfig!$A:$C,3,FALSE) -> 玄玉髓
A39: 35 | B39: 35 | C39: 1340 | D39: 134 | E39: 130 | F39: 134 | G39: 67 | H39: 67 | I39: 1340 | L39: 7.4 | M39: 1202 | N39: =VLOOKUP(M39,[1]ItemConfig!$A:$C,3,FALSE) -> 玄玉髓 | O39: 1202 | P39: =VLOOKUP(O39,[1]ItemConfig!$A:$C,3,FALSE) -> 玄玉髓 | Q39: 1202 | R39: =VLOOKUP(Q39,[1]ItemConfig!$A:$C,3,FALSE) -> 玄玉髓 | S39: 1202 | T39: =VLOOKUP(S39,[1]ItemConfig!$A:$C,3,FALSE) -> 玄玉髓 | U39: 1202 | V39: =VLOOKUP(U39,[1]ItemConfig!$A:$C,3,FALSE) -> 玄玉髓
A40: 36 | B40: 36 | C40: 1350 | D40: 135 | E40: 140 | F40: 135 | G40: 67.5 | H40: 67.5 | I40: 1350 | L40: 7.5 | M40: 1202 | N40: =VLOOKUP(M40,[1]ItemConfig!$A:$C,3,FALSE) -> 玄玉髓 | O40: 1202 | P40: =VLOOKUP(O40,[1]ItemConfig!$A:$C,3,FALSE) -> 玄玉髓 | Q40: 1202 | R40: =VLOOKUP(Q40,[1]ItemConfig!$A:$C,3,FALSE) -> 玄玉髓 | S40: 1202 | T40: =VLOOKUP(S40,[1]ItemConfig!$A:$C,3,FALSE) -> 玄玉髓 | U40: 1202 | V40: =VLOOKUP(U40,[1]ItemConfig!$A:$C,3,FALSE) -> 玄玉髓 | AG40: =1500/75 -> 20
A41: 37 | B41: 37 | C41: 1360 | D41: 136 | E41: 140 | F41: 136 | G41: 68 | H41: 68 | I41: 1360 | L41: 7.6 | M41: 1202 | N41: =VLOOKUP(M41,[1]ItemConfig!$A:$C,3,FALSE) -> 玄玉髓 | O41: 1202 | P41: =VLOOKUP(O41,[1]ItemConfig!$A:$C,3,FALSE) -> 玄玉髓 | Q41: 1202 | R41: =VLOOKUP(Q41,[1]ItemConfig!$A:$C,3,FALSE) -> 玄玉髓 | S41: 1202 | T41: =VLOOKUP(S41,[1]ItemConfig!$A:$C,3,FALSE) -> 玄玉髓 | U41: 1202 | V41: =VLOOKUP(U41,[1]ItemConfig!$A:$C,3,FALSE) -> 玄玉髓
A42: 38 | B42: 38 | C42: 1370 | D42: 137 | E42: 140 | F42: 137 | G42: 68.5 | H42: 68.5 | I42: 1370 | L42: 7.7 | M42: 1202 | N42: =VLOOKUP(M42,[1]ItemConfig!$A:$C,3,FALSE) -> 玄玉髓 | O42: 1202 | P42: =VLOOKUP(O42,[1]ItemConfig!$A:$C,3,FALSE) -> 玄玉髓 | Q42: 1202 | R42: =VLOOKUP(Q42,[1]ItemConfig!$A:$C,3,FALSE) -> 玄玉髓 | S42: 1202 | T42: =VLOOKUP(S42,[1]ItemConfig!$A:$C,3,FALSE) -> 玄玉髓 | U42: 1202 | V42: =VLOOKUP(U42,[1]ItemConfig!$A:$C,3,FALSE) -> 玄玉髓
A43: 39 | B43: 39 | C43: 1380 | D43: 138 | E43: 140 | F43: 138 | G43: 69 | H43: 69 | I43: 1380 | L43: 7.8 | M43: 1202 | N43: =VLOOKUP(M43,[1]ItemConfig!$A:$C,3,FALSE) -> 玄玉髓 | O43: 1202 | P43: =VLOOKUP(O43,[1]ItemConfig!$A:$C,3,FALSE) -> 玄玉髓 | Q43: 1202 | R43: =VLOOKUP(Q43,[1]ItemConfig!$A:$C,3,FALSE) -> 玄玉髓 | S43: 1202 | T43: =VLOOKUP(S43,[1]ItemConfig!$A:$C,3,FALSE) -> 玄玉髓 | U43: 1202 | V43: =VLOOKUP(U43,[1]ItemConfig!$A:$C,3,FALSE) -> 玄玉髓
A44: 40 | B44: 40 | C44: 1390 | D44: 139 | E44: 140 | F44: 139 | G44: 69.5 | H44: 69.5 | I44: 1390 | L44: 7.9 | M44: 1202 | N44: =VLOOKUP(M44,[1]ItemConfig!$A:$C,3,FALSE) -> 玄玉髓 | O44: 1202 | P44: =VLOOKUP(O44,[1]ItemConfig!$A:$C,3,FALSE) -> 玄玉髓 | Q44: 1202 | R44: =VLOOKUP(Q44,[1]ItemConfig!$A:$C,3,FALSE) -> 玄玉髓 | S44: 1202 | T44: =VLOOKUP(S44,[1]ItemConfig!$A:$C,3,FALSE) -> 玄玉髓 | U44: 1202 | V44: =VLOOKUP(U44,[1]ItemConfig!$A:$C,3,FALSE) -> 玄玉髓
A45: 41 | B45: 41 | C45: 1400 | D45: 140 | E45: 140 | F45: 140 | G45: 70 | H45: 70 | I45: 1400 | L45: 8 | M45: 1202 | N45: =VLOOKUP(M45,[1]ItemConfig!$A:$C,3,FALSE) -> 玄玉髓 | O45: 1202 | P45: =VLOOKUP(O45,[1]ItemConfig!$A:$C,3,FALSE) -> 玄玉髓 | Q45: 1202 | R45: =VLOOKUP(Q45,[1]ItemConfig!$A:$C,3,FALSE) -> 玄玉髓 | S45: 1202 | T45: =VLOOKUP(S45,[1]ItemConfig!$A:$C,3,FALSE) -> 玄玉髓 | U45: 1202 | V45: =VLOOKUP(U45,[1]ItemConfig!$A:$C,3,FALSE) -> 玄玉髓
A46: 42 | B46: 42 | C46: =ROUND($I46*C$5/$I$5,0) -> 1410 | D46: 141 | E46: 140 | F46: 141 | G46: 70.5 | H46: 70.5 | I46: 1410 | L46: 8.1 | M46: 1202 | N46: =VLOOKUP(M46,[1]ItemConfig!$A:$C,3,FALSE) -> 玄玉髓 | O46: 1202 | P46: =VLOOKUP(O46,[1]ItemConfig!$A:$C,3,FALSE) -> 玄玉髓 | Q46: 1202 | R46: =VLOOKUP(Q46,[1]ItemConfig!$A:$C,3,FALSE) -> 玄玉髓 | S46: 1202 | T46: =VLOOKUP(S46,[1]ItemConfig!$A:$C,3,FALSE) -> 玄玉髓 | U46: 1202 | V46: =VLOOKUP(U46,[1]ItemConfig!$A:$C,3,FALSE) -> 玄玉髓
A47: 43 | B47: 43 | C47: 1420 | D47: 142 | E47: 140 | F47: 142 | G47: 71 | H47: 71 | I47: 1420 | L47: 8.2 | M47: 1202 | N47: =VLOOKUP(M47,[1]ItemConfig!$A:$C,3,FALSE) -> 玄玉髓 | O47: 1202 | P47: =VLOOKUP(O47,[1]ItemConfig!$A:$C,3,FALSE) -> 玄玉髓 | Q47: 1202 | R47: =VLOOKUP(Q47,[1]ItemConfig!$A:$C,3,FALSE) -> 玄玉髓 | S47: 1202 | T47: =VLOOKUP(S47,[1]ItemConfig!$A:$C,3,FALSE) -> 玄玉髓 | U47: 1202 | V47: =VLOOKUP(U47,[1]ItemConfig!$A:$C,3,FALSE) -> 玄玉髓
A48: 44 | B48: 44 | C48: 1430 | D48: 143 | E48: 140 | F48: 143 | G48: 71.5 | H48: 71.5 | I48: 1430 | L48: 8.3 | M48: 1202 | N48: =VLOOKUP(M48,[1]ItemConfig!$A:$C,3,FALSE) -> 玄玉髓 | O48: 1202 | P48: =VLOOKUP(O48,[1]ItemConfig!$A:$C,3,FALSE) -> 玄玉髓 | Q48: 1202 | R48: =VLOOKUP(Q48,[1]ItemConfig!$A:$C,3,FALSE) -> 玄玉髓 | S48: 1202 | T48: =VLOOKUP(S48,[1]ItemConfig!$A:$C,3,FALSE) -> 玄玉髓 | U48: 1202 | V48: =VLOOKUP(U48,[1]ItemConfig!$A:$C,3,FALSE) -> 玄玉髓
A49: 45 | B49: 45 | C49: 1440 | D49: 144 | E49: 140 | F49: 144 | G49: 72 | H49: 72 | I49: 1440 | L49: 8.4 | M49: 1202 | N49: =VLOOKUP(M49,[1]ItemConfig!$A:$C,3,FALSE) -> 玄玉髓 | O49: 1202 | P49: =VLOOKUP(O49,[1]ItemConfig!$A:$C,3,FALSE) -> 玄玉髓 | Q49: 1202 | R49: =VLOOKUP(Q49,[1]ItemConfig!$A:$C,3,FALSE) -> 玄玉髓 | S49: 1202 | T49: =VLOOKUP(S49,[1]ItemConfig!$A:$C,3,FALSE) -> 玄玉髓 | U49: 1202 | V49: =VLOOKUP(U49,[1]ItemConfig!$A:$C,3,FALSE) -> 玄玉髓
A50: 46 | B50: 46 | C50: 1450 | D50: 145 | E50: 150 | F50: 145 | G50: 72.5 | H50: 72.5 | I50: 1450 | L50: 8.5 | M50: 1202 | N50: =VLOOKUP(M50,[1]ItemConfig!$A:$C,3,FALSE) -> 玄玉髓 | O50: 1202 | P50: =VLOOKUP(O50,[1]ItemConfig!$A:$C,3,FALSE) -> 玄玉髓 | Q50: 1202 | R50: =VLOOKUP(Q50,[1]ItemConfig!$A:$C,3,FALSE) -> 玄玉髓 | S50: 1202 | T50: =VLOOKUP(S50,[1]ItemConfig!$A:$C,3,FALSE) -> 玄玉髓 | U50: 1202 | V50: =VLOOKUP(U50,[1]ItemConfig!$A:$C,3,FALSE) -> 玄玉髓
A51: 47 | B51: 47 | C51: 1460 | D51: 146 | E51: 150 | F51: 146 | G51: 73 | H51: 73 | I51: 1460 | L51: 8.6 | M51: 1202 | N51: =VLOOKUP(M51,[1]ItemConfig!$A:$C,3,FALSE) -> 玄玉髓 | O51: 1202 | P51: =VLOOKUP(O51,[1]ItemConfig!$A:$C,3,FALSE) -> 玄玉髓 | Q51: 1202 | R51: =VLOOKUP(Q51,[1]ItemConfig!$A:$C,3,FALSE) -> 玄玉髓 | S51: 1202 | T51: =VLOOKUP(S51,[1]ItemConfig!$A:$C,3,FALSE) -> 玄玉髓 | U51: 1202 | V51: =VLOOKUP(U51,[1]ItemConfig!$A:$C,3,FALSE) -> 玄玉髓
A52: 48 | B52: 48 | C52: 1470 | D52: 147 | E52: 150 | F52: 147 | G52: 73.5 | H52: 73.5 | I52: 1470 | L52: 8.7 | M52: 1202 | N52: =VLOOKUP(M52,[1]ItemConfig!$A:$C,3,FALSE) -> 玄玉髓 | O52: 1202 | P52: =VLOOKUP(O52,[1]ItemConfig!$A:$C,3,FALSE) -> 玄玉髓 | Q52: 1202 | R52: =VLOOKUP(Q52,[1]ItemConfig!$A:$C,3,FALSE) -> 玄玉髓 | S52: 1202 | T52: =VLOOKUP(S52,[1]ItemConfig!$A:$C,3,FALSE) -> 玄玉髓 | U52: 1202 | V52: =VLOOKUP(U52,[1]ItemConfig!$A:$C,3,FALSE) -> 玄玉髓
A53: 49 | B53: 49 | C53: 1480 | D53: 148 | E53: 150 | F53: 148 | G53: 74 | H53: 74 | I53: 1480 | L53: 8.8 | M53: 1202 | N53: =VLOOKUP(M53,[1]ItemConfig!$A:$C,3,FALSE) -> 玄玉髓 | O53: 1202 | P53: =VLOOKUP(O53,[1]ItemConfig!$A:$C,3,FALSE) -> 玄玉髓 | Q53: 1202 | R53: =VLOOKUP(Q53,[1]ItemConfig!$A:$C,3,FALSE) -> 玄玉髓 | S53: 1202 | T53: =VLOOKUP(S53,[1]ItemConfig!$A:$C,3,FALSE) -> 玄玉髓 | U53: 1202 | V53: =VLOOKUP(U53,[1]ItemConfig!$A:$C,3,FALSE) -> 玄玉髓
A54: 50 | B54: 50 | C54: 1490 | D54: 149 | E54: 150 | F54: 149 | G54: 74.5 | H54: 74.5 | I54: 1490 | L54: 8.9 | M54: 1202 | N54: =VLOOKUP(M54,[1]ItemConfig!$A:$C,3,FALSE) -> 玄玉髓 | O54: 1202 | P54: =VLOOKUP(O54,[1]ItemConfig!$A:$C,3,FALSE) -> 玄玉髓 | Q54: 1202 | R54: =VLOOKUP(Q54,[1]ItemConfig!$A:$C,3,FALSE) -> 玄玉髓 | S54: 1202 | T54: =VLOOKUP(S54,[1]ItemConfig!$A:$C,3,FALSE) -> 玄玉髓 | U54: 1202 | V54: =VLOOKUP(U54,[1]ItemConfig!$A:$C,3,FALSE) -> 玄玉髓
A55: 51 | B55: 51 | C55: 1500 | D55: 150 | E55: 150 | F55: 150 | G55: 75 | H55: 75 | I55: 1500 | L55: 9 | M55: 1202 | N55: =VLOOKUP(M55,[1]ItemConfig!$A:$C,3,FALSE) -> 玄玉髓 | O55: 1202 | P55: =VLOOKUP(O55,[1]ItemConfig!$A:$C,3,FALSE) -> 玄玉髓 | Q55: 1202 | R55: =VLOOKUP(Q55,[1]ItemConfig!$A:$C,3,FALSE) -> 玄玉髓 | S55: 1202 | T55: =VLOOKUP(S55,[1]ItemConfig!$A:$C,3,FALSE) -> 玄玉髓 | U55: 1202 | V55: =VLOOKUP(U55,[1]ItemConfig!$A:$C,3,FALSE) -> 玄玉髓
A56: 52 | B56: 52 | C56: =ROUND($I56*C$5/$I$5,0) -> 1510 | D56: 151 | E56: 150 | F56: 151 | G56: 75.5 | H56: 75.5 | I56: 1510 | L56: 9.1 | M56: 1202 | N56: =VLOOKUP(M56,[1]ItemConfig!$A:$C,3,FALSE) -> 玄玉髓 | O56: 1202 | P56: =VLOOKUP(O56,[1]ItemConfig!$A:$C,3,FALSE) -> 玄玉髓 | Q56: 1202 | R56: =VLOOKUP(Q56,[1]ItemConfig!$A:$C,3,FALSE) -> 玄玉髓 | S56: 1202 | T56: =VLOOKUP(S56,[1]ItemConfig!$A:$C,3,FALSE) -> 玄玉髓 | U56: 1202 | V56: =VLOOKUP(U56,[1]ItemConfig!$A:$C,3,FALSE) -> 玄玉髓
A57: 53 | B57: 53 | C57: 1520 | D57: 152 | E57: 150 | F57: 152 | G57: 76 | H57: 76 | I57: 1520 | L57: 9.2 | M57: 1202 | N57: =VLOOKUP(M57,[1]ItemConfig!$A:$C,3,FALSE) -> 玄玉髓 | O57: 1202 | P57: =VLOOKUP(O57,[1]ItemConfig!$A:$C,3,FALSE) -> 玄玉髓 | Q57: 1202 | R57: =VLOOKUP(Q57,[1]ItemConfig!$A:$C,3,FALSE) -> 玄玉髓 | S57: 1202 | T57: =VLOOKUP(S57,[1]ItemConfig!$A:$C,3,FALSE) -> 玄玉髓 | U57: 1202 | V57: =VLOOKUP(U57,[1]ItemConfig!$A:$C,3,FALSE) -> 玄玉髓
A58: 54 | B58: 54 | C58: 1530 | D58: 153 | E58: 150 | F58: 153 | G58: 76.5 | H58: 76.5 | I58: 1530 | L58: 9.3 | M58: 1202 | N58: =VLOOKUP(M58,[1]ItemConfig!$A:$C,3,FALSE) -> 玄玉髓 | O58: 1202 | P58: =VLOOKUP(O58,[1]ItemConfig!$A:$C,3,FALSE) -> 玄玉髓 | Q58: 1202 | R58: =VLOOKUP(Q58,[1]ItemConfig!$A:$C,3,FALSE) -> 玄玉髓 | S58: 1202 | T58: =VLOOKUP(S58,[1]ItemConfig!$A:$C,3,FALSE) -> 玄玉髓 | U58: 1202 | V58: =VLOOKUP(U58,[1]ItemConfig!$A:$C,3,FALSE) -> 玄玉髓
A59: 55 | B59: 55 | C59: 1540 | D59: 154 | E59: 150 | F59: 154 | G59: 77 | H59: 77 | I59: 1540 | L59: 9.4 | M59: 1202 | N59: =VLOOKUP(M59,[1]ItemConfig!$A:$C,3,FALSE) -> 玄玉髓 | O59: 1202 | P59: =VLOOKUP(O59,[1]ItemConfig!$A:$C,3,FALSE) -> 玄玉髓 | Q59: 1202 | R59: =VLOOKUP(Q59,[1]ItemConfig!$A:$C,3,FALSE) -> 玄玉髓 | S59: 1202 | T59: =VLOOKUP(S59,[1]ItemConfig!$A:$C,3,FALSE) -> 玄玉髓 | U59: 1202 | V59: =VLOOKUP(U59,[1]ItemConfig!$A:$C,3,FALSE) -> 玄玉髓
A60: 56 | B60: 56 | C60: 1550 | D60: 155 | E60: 160 | F60: 155 | G60: 77.5 | H60: 77.5 | I60: 1550 | L60: 9.5 | M60: 1202 | N60: =VLOOKUP(M60,[1]ItemConfig!$A:$C,3,FALSE) -> 玄玉髓 | O60: 1202 | P60: =VLOOKUP(O60,[1]ItemConfig!$A:$C,3,FALSE) -> 玄玉髓 | Q60: 1202 | R60: =VLOOKUP(Q60,[1]ItemConfig!$A:$C,3,FALSE) -> 玄玉髓 | S60: 1202 | T60: =VLOOKUP(S60,[1]ItemConfig!$A:$C,3,FALSE) -> 玄玉髓 | U60: 1202 | V60: =VLOOKUP(U60,[1]ItemConfig!$A:$C,3,FALSE) -> 玄玉髓
A61: 57 | B61: 57 | C61: 1560 | D61: 156 | E61: 160 | F61: 156 | G61: 78 | H61: 78 | I61: 1560 | L61: 9.6 | M61: 1202 | N61: =VLOOKUP(M61,[1]ItemConfig!$A:$C,3,FALSE) -> 玄玉髓 | O61: 1202 | P61: =VLOOKUP(O61,[1]ItemConfig!$A:$C,3,FALSE) -> 玄玉髓 | Q61: 1202 | R61: =VLOOKUP(Q61,[1]ItemConfig!$A:$C,3,FALSE) -> 玄玉髓 | S61: 1202 | T61: =VLOOKUP(S61,[1]ItemConfig!$A:$C,3,FALSE) -> 玄玉髓 | U61: 1202 | V61: =VLOOKUP(U61,[1]ItemConfig!$A:$C,3,FALSE) -> 玄玉髓
A62: 58 | B62: 58 | C62: 1570 | D62: 157 | E62: 160 | F62: 157 | G62: 78.5 | H62: 78.5 | I62: 1570 | L62: 9.7 | M62: 1202 | N62: =VLOOKUP(M62,[1]ItemConfig!$A:$C,3,FALSE) -> 玄玉髓 | O62: 1202 | P62: =VLOOKUP(O62,[1]ItemConfig!$A:$C,3,FALSE) -> 玄玉髓 | Q62: 1202 | R62: =VLOOKUP(Q62,[1]ItemConfig!$A:$C,3,FALSE) -> 玄玉髓 | S62: 1202 | T62: =VLOOKUP(S62,[1]ItemConfig!$A:$C,3,FALSE) -> 玄玉髓 | U62: 1202 | V62: =VLOOKUP(U62,[1]ItemConfig!$A:$C,3,FALSE) -> 玄玉髓
A63: 59 | B63: 59 | C63: 1580 | D63: 158 | E63: 160 | F63: 158 | G63: 79 | H63: 79 | I63: 1580 | L63: 9.8 | M63: 1202 | N63: =VLOOKUP(M63,[1]ItemConfig!$A:$C,3,FALSE) -> 玄玉髓 | O63: 1202 | P63: =VLOOKUP(O63,[1]ItemConfig!$A:$C,3,FALSE) -> 玄玉髓 | Q63: 1202 | R63: =VLOOKUP(Q63,[1]ItemConfig!$A:$C,3,FALSE) -> 玄玉髓 | S63: 1202 | T63: =VLOOKUP(S63,[1]ItemConfig!$A:$C,3,FALSE) -> 玄玉髓 | U63: 1202 | V63: =VLOOKUP(U63,[1]ItemConfig!$A:$C,3,FALSE) -> 玄玉髓
A64: 60 | B64: 60 | C64: 1590 | D64: 159 | E64: 160 | F64: 159 | G64: 79.5 | H64: 79.5 | I64: 1590 | L64: 9.9 | M64: 1202 | N64: =VLOOKUP(M64,[1]ItemConfig!$A:$C,3,FALSE) -> 玄玉髓 | O64: 1202 | P64: =VLOOKUP(O64,[1]ItemConfig!$A:$C,3,FALSE) -> 玄玉髓 | Q64: 1202 | R64: =VLOOKUP(Q64,[1]ItemConfig!$A:$C,3,FALSE) -> 玄玉髓 | S64: 1202 | T64: =VLOOKUP(S64,[1]ItemConfig!$A:$C,3,FALSE) -> 玄玉髓 | U64: 1202 | V64: =VLOOKUP(U64,[1]ItemConfig!$A:$C,3,FALSE) -> 玄玉髓
A65: 61 | B65: 61 | C65: 1600 | D65: 160 | E65: 160 | F65: 160 | G65: 80 | H65: 80 | I65: 1600 | L65: 10 | M65: 1203 | N65: =VLOOKUP(M65,[1]ItemConfig!$A:$C,3,FALSE) -> 赤阳砂 | O65: 1204 | P65: =VLOOKUP(O65,[1]ItemConfig!$A:$C,3,FALSE) -> 火灵果 | Q65: 1203 | R65: =VLOOKUP(Q65,[1]ItemConfig!$A:$C,3,FALSE) -> 赤阳砂 | S65: 1204 | T65: =VLOOKUP(S65,[1]ItemConfig!$A:$C,3,FALSE) -> 火灵果 | U65: 1203 | V65: =VLOOKUP(U65,[1]ItemConfig!$A:$C,3,FALSE) -> 赤阳砂
A66: 62 | B66: 62 | C66: =ROUND($I66*C$5/$I$5,0) -> 1610 | D66: 161 | E66: 160 | F66: 161 | G66: 80.5 | H66: 80.5 | I66: 1610 | L66: 10.1 | M66: 1203 | N66: =VLOOKUP(M66,[1]ItemConfig!$A:$C,3,FALSE) -> 赤阳砂 | O66: 1204 | P66: =VLOOKUP(O66,[1]ItemConfig!$A:$C,3,FALSE) -> 火灵果 | Q66: 1203 | R66: =VLOOKUP(Q66,[1]ItemConfig!$A:$C,3,FALSE) -> 赤阳砂 | S66: 1204 | T66: =VLOOKUP(S66,[1]ItemConfig!$A:$C,3,FALSE) -> 火灵果 | U66: 1203 | V66: =VLOOKUP(U66,[1]ItemConfig!$A:$C,3,FALSE) -> 赤阳砂
A67: 63 | B67: 63 | C67: 1620 | D67: 162 | E67: 160 | F67: 162 | G67: 81 | H67: 81 | I67: 1620 | L67: 10.2 | M67: 1203 | N67: =VLOOKUP(M67,[1]ItemConfig!$A:$C,3,FALSE) -> 赤阳砂 | O67: 1204 | P67: =VLOOKUP(O67,[1]ItemConfig!$A:$C,3,FALSE) -> 火灵果 | Q67: 1203 | R67: =VLOOKUP(Q67,[1]ItemConfig!$A:$C,3,FALSE) -> 赤阳砂 | S67: 1204 | T67: =VLOOKUP(S67,[1]ItemConfig!$A:$C,3,FALSE) -> 火灵果 | U67: 1203 | V67: =VLOOKUP(U67,[1]ItemConfig!$A:$C,3,FALSE) -> 赤阳砂
A68: 64 | B68: 64 | C68: 1630 | D68: 163 | E68: 160 | F68: 163 | G68: 81.5 | H68: 81.5 | I68: 1630 | L68: 10.3 | M68: 1203 | N68: =VLOOKUP(M68,[1]ItemConfig!$A:$C,3,FALSE) -> 赤阳砂 | O68: 1204 | P68: =VLOOKUP(O68,[1]ItemConfig!$A:$C,3,FALSE) -> 火灵果 | Q68: 1203 | R68: =VLOOKUP(Q68,[1]ItemConfig!$A:$C,3,FALSE) -> 赤阳砂 | S68: 1204 | T68: =VLOOKUP(S68,[1]ItemConfig!$A:$C,3,FALSE) -> 火灵果 | U68: 1203 | V68: =VLOOKUP(U68,[1]ItemConfig!$A:$C,3,FALSE) -> 赤阳砂
A69: 65 | B69: 65 | C69: 1640 | D69: 164 | E69: 160 | F69: 164 | G69: 82 | H69: 82 | I69: 1640 | L69: 10.4 | M69: 1203 | N69: =VLOOKUP(M69,[1]ItemConfig!$A:$C,3,FALSE) -> 赤阳砂 | O69: 1204 | P69: =VLOOKUP(O69,[1]ItemConfig!$A:$C,3,FALSE) -> 火灵果 | Q69: 1203 | R69: =VLOOKUP(Q69,[1]ItemConfig!$A:$C,3,FALSE) -> 赤阳砂 | S69: 1204 | T69: =VLOOKUP(S69,[1]ItemConfig!$A:$C,3,FALSE) -> 火灵果 | U69: 1203 | V69: =VLOOKUP(U69,[1]ItemConfig!$A:$C,3,FALSE) -> 赤阳砂
A70: 66 | B70: 66 | C70: 1650 | D70: 165 | E70: 170 | F70: 165 | G70: =H70 -> 82.5 | H70: 82.5 | I70: =MAX(I69+I$5*0.01,I69*$J$4) -> 1650 | L70: 10.5 | M70: 1203 | N70: =VLOOKUP(M70,[1]ItemConfig!$A:$C,3,FALSE) -> 赤阳砂 | O70: 1204 | P70: =VLOOKUP(O70,[1]ItemConfig!$A:$C,3,FALSE) -> 火灵果 | Q70: 1203 | R70: =VLOOKUP(Q70,[1]ItemConfig!$A:$C,3,FALSE) -> 赤阳砂 | S70: 1204 | T70: =VLOOKUP(S70,[1]ItemConfig!$A:$C,3,FALSE) -> 火灵果 | U70: 1203 | V70: =VLOOKUP(U70,[1]ItemConfig!$A:$C,3,FALSE) -> 赤阳砂
A71: 67 | B71: 67 | C71: 1660 | D71: 166 | E71: =ROUND($I71*E$5/$I$5*0.1,0)*10 -> 170 | F71: 166 | G71: 83 | H71: =H70+J$3 -> 83 | I71: 1660 | L71: 10.6 | M71: 1203 | N71: =VLOOKUP(M71,[1]ItemConfig!$A:$C,3,FALSE) -> 赤阳砂 | O71: 1204 | P71: =VLOOKUP(O71,[1]ItemConfig!$A:$C,3,FALSE) -> 火灵果 | Q71: 1203 | R71: =VLOOKUP(Q71,[1]ItemConfig!$A:$C,3,FALSE) -> 赤阳砂 | S71: 1204 | T71: =VLOOKUP(S71,[1]ItemConfig!$A:$C,3,FALSE) -> 火灵果 | U71: 1203 | V71: =VLOOKUP(U71,[1]ItemConfig!$A:$C,3,FALSE) -> 赤阳砂
A72: 68 | B72: 68 | C72: 1670 | D72: 167 | E72: 170 | F72: 167 | G72: 83.5 | H72: 83.5 | I72: 1670 | L72: 10.7 | M72: 1203 | N72: =VLOOKUP(M72,[1]ItemConfig!$A:$C,3,FALSE) -> 赤阳砂 | O72: 1204 | P72: =VLOOKUP(O72,[1]ItemConfig!$A:$C,3,FALSE) -> 火灵果 | Q72: 1203 | R72: =VLOOKUP(Q72,[1]ItemConfig!$A:$C,3,FALSE) -> 赤阳砂 | S72: 1204 | T72: =VLOOKUP(S72,[1]ItemConfig!$A:$C,3,FALSE) -> 火灵果 | U72: 1203 | V72: =VLOOKUP(U72,[1]ItemConfig!$A:$C,3,FALSE) -> 赤阳砂
A73: 69 | B73: 69 | C73: 1680 | D73: 168 | E73: 170 | F73: 168 | G73: 84 | H73: 84 | I73: 1680 | L73: 10.8 | M73: 1203 | N73: =VLOOKUP(M73,[1]ItemConfig!$A:$C,3,FALSE) -> 赤阳砂 | O73: 1204 | P73: =VLOOKUP(O73,[1]ItemConfig!$A:$C,3,FALSE) -> 火灵果 | Q73: 1203 | R73: =VLOOKUP(Q73,[1]ItemConfig!$A:$C,3,FALSE) -> 赤阳砂 | S73: 1204 | T73: =VLOOKUP(S73,[1]ItemConfig!$A:$C,3,FALSE) -> 火灵果 | U73: 1203 | V73: =VLOOKUP(U73,[1]ItemConfig!$A:$C,3,FALSE) -> 赤阳砂
A74: 70 | B74: 70 | C74: 1690 | D74: 169 | E74: 170 | F74: 169 | G74: 84.5 | H74: 84.5 | I74: 1690 | L74: 10.9 | M74: 1203 | N74: =VLOOKUP(M74,[1]ItemConfig!$A:$C,3,FALSE) -> 赤阳砂 | O74: 1204 | P74: =VLOOKUP(O74,[1]ItemConfig!$A:$C,3,FALSE) -> 火灵果 | Q74: 1203 | R74: =VLOOKUP(Q74,[1]ItemConfig!$A:$C,3,FALSE) -> 赤阳砂 | S74: 1204 | T74: =VLOOKUP(S74,[1]ItemConfig!$A:$C,3,FALSE) -> 火灵果 | U74: 1203 | V74: =VLOOKUP(U74,[1]ItemConfig!$A:$C,3,FALSE) -> 赤阳砂
A75: 71 | B75: 71 | C75: 1700 | D75: 170 | E75: 170 | F75: 170 | G75: 85 | H75: 85 | I75: 1700 | L75: 11 | M75: 1203 | N75: =VLOOKUP(M75,[1]ItemConfig!$A:$C,3,FALSE) -> 赤阳砂 | O75: 1204 | P75: =VLOOKUP(O75,[1]ItemConfig!$A:$C,3,FALSE) -> 火灵果 | Q75: 1203 | R75: =VLOOKUP(Q75,[1]ItemConfig!$A:$C,3,FALSE) -> 赤阳砂 | S75: 1204 | T75: =VLOOKUP(S75,[1]ItemConfig!$A:$C,3,FALSE) -> 火灵果 | U75: 1203 | V75: =VLOOKUP(U75,[1]ItemConfig!$A:$C,3,FALSE) -> 赤阳砂
A76: 72 | B76: 72 | C76: =ROUND($I76*C$5/$I$5,0) -> 1710 | D76: 171 | E76: 170 | F76: 171 | G76: 85.5 | H76: 85.5 | I76: 1710 | L76: 11.1 | M76: 1203 | N76: =VLOOKUP(M76,[1]ItemConfig!$A:$C,3,FALSE) -> 赤阳砂 | O76: 1204 | P76: =VLOOKUP(O76,[1]ItemConfig!$A:$C,3,FALSE) -> 火灵果 | Q76: 1203 | R76: =VLOOKUP(Q76,[1]ItemConfig!$A:$C,3,FALSE) -> 赤阳砂 | S76: 1204 | T76: =VLOOKUP(S76,[1]ItemConfig!$A:$C,3,FALSE) -> 火灵果 | U76: 1203 | V76: =VLOOKUP(U76,[1]ItemConfig!$A:$C,3,FALSE) -> 赤阳砂
A77: 73 | B77: 73 | C77: 1720 | D77: 172 | E77: 170 | F77: 172 | G77: 86 | H77: 86 | I77: 1720 | L77: 11.2 | M77: 1203 | N77: =VLOOKUP(M77,[1]ItemConfig!$A:$C,3,FALSE) -> 赤阳砂 | O77: 1204 | P77: =VLOOKUP(O77,[1]ItemConfig!$A:$C,3,FALSE) -> 火灵果 | Q77: 1203 | R77: =VLOOKUP(Q77,[1]ItemConfig!$A:$C,3,FALSE) -> 赤阳砂 | S77: 1204 | T77: =VLOOKUP(S77,[1]ItemConfig!$A:$C,3,FALSE) -> 火灵果 | U77: 1203 | V77: =VLOOKUP(U77,[1]ItemConfig!$A:$C,3,FALSE) -> 赤阳砂
A78: 74 | B78: 74 | C78: 1730 | D78: 173 | E78: 170 | F78: 173 | G78: 86.5 | H78: 86.5 | I78: 1730 | L78: 11.3 | M78: 1203 | N78: =VLOOKUP(M78,[1]ItemConfig!$A:$C,3,FALSE) -> 赤阳砂 | O78: 1204 | P78: =VLOOKUP(O78,[1]ItemConfig!$A:$C,3,FALSE) -> 火灵果 | Q78: 1203 | R78: =VLOOKUP(Q78,[1]ItemConfig!$A:$C,3,FALSE) -> 赤阳砂 | S78: 1204 | T78: =VLOOKUP(S78,[1]ItemConfig!$A:$C,3,FALSE) -> 火灵果 | U78: 1203 | V78: =VLOOKUP(U78,[1]ItemConfig!$A:$C,3,FALSE) -> 赤阳砂
A79: 75 | B79: 75 | C79: 1740 | D79: 174 | E79: 170 | F79: 174 | G79: 87 | H79: 87 | I79: 1740 | L79: 11.4 | M79: 1203 | N79: =VLOOKUP(M79,[1]ItemConfig!$A:$C,3,FALSE) -> 赤阳砂 | O79: 1204 | P79: =VLOOKUP(O79,[1]ItemConfig!$A:$C,3,FALSE) -> 火灵果 | Q79: 1203 | R79: =VLOOKUP(Q79,[1]ItemConfig!$A:$C,3,FALSE) -> 赤阳砂 | S79: 1204 | T79: =VLOOKUP(S79,[1]ItemConfig!$A:$C,3,FALSE) -> 火灵果 | U79: 1203 | V79: =VLOOKUP(U79,[1]ItemConfig!$A:$C,3,FALSE) -> 赤阳砂
A80: 76 | B80: 76 | C80: 1750 | D80: 175 | E80: 180 | F80: 175 | G80: 87.5 | H80: 87.5 | I80: 1750 | L80: 11.5 | M80: 1203 | N80: =VLOOKUP(M80,[1]ItemConfig!$A:$C,3,FALSE) -> 赤阳砂 | O80: 1204 | P80: =VLOOKUP(O80,[1]ItemConfig!$A:$C,3,FALSE) -> 火灵果 | Q80: 1203 | R80: =VLOOKUP(Q80,[1]ItemConfig!$A:$C,3,FALSE) -> 赤阳砂 | S80: 1204 | T80: =VLOOKUP(S80,[1]ItemConfig!$A:$C,3,FALSE) -> 火灵果 | U80: 1203 | V80: =VLOOKUP(U80,[1]ItemConfig!$A:$C,3,FALSE) -> 赤阳砂
A81: 77 | B81: 77 | C81: 1760 | D81: 176 | E81: 180 | F81: 176 | G81: 88 | H81: 88 | I81: 1760 | L81: 11.6 | M81: 1203 | N81: =VLOOKUP(M81,[1]ItemConfig!$A:$C,3,FALSE) -> 赤阳砂 | O81: 1204 | P81: =VLOOKUP(O81,[1]ItemConfig!$A:$C,3,FALSE) -> 火灵果 | Q81: 1203 | R81: =VLOOKUP(Q81,[1]ItemConfig!$A:$C,3,FALSE) -> 赤阳砂 | S81: 1204 | T81: =VLOOKUP(S81,[1]ItemConfig!$A:$C,3,FALSE) -> 火灵果 | U81: 1203 | V81: =VLOOKUP(U81,[1]ItemConfig!$A:$C,3,FALSE) -> 赤阳砂
A82: 78 | B82: 78 | C82: 1770 | D82: 177 | E82: 180 | F82: 177 | G82: 88.5 | H82: 88.5 | I82: 1770 | L82: 11.7 | M82: 1203 | N82: =VLOOKUP(M82,[1]ItemConfig!$A:$C,3,FALSE) -> 赤阳砂 | O82: 1204 | P82: =VLOOKUP(O82,[1]ItemConfig!$A:$C,3,FALSE) -> 火灵果 | Q82: 1203 | R82: =VLOOKUP(Q82,[1]ItemConfig!$A:$C,3,FALSE) -> 赤阳砂 | S82: 1204 | T82: =VLOOKUP(S82,[1]ItemConfig!$A:$C,3,FALSE) -> 火灵果 | U82: 1203 | V82: =VLOOKUP(U82,[1]ItemConfig!$A:$C,3,FALSE) -> 赤阳砂
A83: 79 | B83: 79 | C83: 1780 | D83: 178 | E83: 180 | F83: 178 | G83: 89 | H83: 89 | I83: 1780 | L83: 11.8 | M83: 1203 | N83: =VLOOKUP(M83,[1]ItemConfig!$A:$C,3,FALSE) -> 赤阳砂 | O83: 1204 | P83: =VLOOKUP(O83,[1]ItemConfig!$A:$C,3,FALSE) -> 火灵果 | Q83: 1203 | R83: =VLOOKUP(Q83,[1]ItemConfig!$A:$C,3,FALSE) -> 赤阳砂 | S83: 1204 | T83: =VLOOKUP(S83,[1]ItemConfig!$A:$C,3,FALSE) -> 火灵果 | U83: 1203 | V83: =VLOOKUP(U83,[1]ItemConfig!$A:$C,3,FALSE) -> 赤阳砂
A84: 80 | B84: 80 | C84: 1790 | D84: 179 | E84: 180 | F84: 179 | G84: 89.5 | H84: 89.5 | I84: 1790 | L84: 11.9 | M84: 1203 | N84: =VLOOKUP(M84,[1]ItemConfig!$A:$C,3,FALSE) -> 赤阳砂 | O84: 1204 | P84: =VLOOKUP(O84,[1]ItemConfig!$A:$C,3,FALSE) -> 火灵果 | Q84: 1203 | R84: =VLOOKUP(Q84,[1]ItemConfig!$A:$C,3,FALSE) -> 赤阳砂 | S84: 1204 | T84: =VLOOKUP(S84,[1]ItemConfig!$A:$C,3,FALSE) -> 火灵果 | U84: 1203 | V84: =VLOOKUP(U84,[1]ItemConfig!$A:$C,3,FALSE) -> 赤阳砂
A85: 81 | B85: 81 | C85: 1800 | D85: 180 | E85: 180 | F85: 180 | G85: 90 | H85: 90 | I85: 1800 | L85: 12 | M85: 1203 | N85: =VLOOKUP(M85,[1]ItemConfig!$A:$C,3,FALSE) -> 赤阳砂 | O85: 1204 | P85: =VLOOKUP(O85,[1]ItemConfig!$A:$C,3,FALSE) -> 火灵果 | Q85: 1203 | R85: =VLOOKUP(Q85,[1]ItemConfig!$A:$C,3,FALSE) -> 赤阳砂 | S85: 1204 | T85: =VLOOKUP(S85,[1]ItemConfig!$A:$C,3,FALSE) -> 火灵果 | U85: 1203 | V85: =VLOOKUP(U85,[1]ItemConfig!$A:$C,3,FALSE) -> 赤阳砂
A86: 82 | B86: 82 | C86: =ROUND($I86*C$5/$I$5,0) -> 1810 | D86: 181 | E86: 180 | F86: 181 | G86: 90.5 | H86: 90.5 | I86: 1810 | L86: 12.1 | M86: 1203 | N86: =VLOOKUP(M86,[1]ItemConfig!$A:$C,3,FALSE) -> 赤阳砂 | O86: 1204 | P86: =VLOOKUP(O86,[1]ItemConfig!$A:$C,3,FALSE) -> 火灵果 | Q86: 1203 | R86: =VLOOKUP(Q86,[1]ItemConfig!$A:$C,3,FALSE) -> 赤阳砂 | S86: 1204 | T86: =VLOOKUP(S86,[1]ItemConfig!$A:$C,3,FALSE) -> 火灵果 | U86: 1203 | V86: =VLOOKUP(U86,[1]ItemConfig!$A:$C,3,FALSE) -> 赤阳砂
A87: 83 | B87: 83 | C87: 1820 | D87: 182 | E87: 180 | F87: 182 | G87: 91 | H87: 91 | I87: 1820 | L87: 12.2 | M87: 1203 | N87: =VLOOKUP(M87,[1]ItemConfig!$A:$C,3,FALSE) -> 赤阳砂 | O87: 1204 | P87: =VLOOKUP(O87,[1]ItemConfig!$A:$C,3,FALSE) -> 火灵果 | Q87: 1203 | R87: =VLOOKUP(Q87,[1]ItemConfig!$A:$C,3,FALSE) -> 赤阳砂 | S87: 1204 | T87: =VLOOKUP(S87,[1]ItemConfig!$A:$C,3,FALSE) -> 火灵果 | U87: 1203 | V87: =VLOOKUP(U87,[1]ItemConfig!$A:$C,3,FALSE) -> 赤阳砂
A88: 84 | B88: 84 | C88: 1830 | D88: 183 | E88: 180 | F88: 183 | G88: 91.5 | H88: 91.5 | I88: 1830 | L88: 12.3 | M88: 1203 | N88: =VLOOKUP(M88,[1]ItemConfig!$A:$C,3,FALSE) -> 赤阳砂 | O88: 1204 | P88: =VLOOKUP(O88,[1]ItemConfig!$A:$C,3,FALSE) -> 火灵果 | Q88: 1203 | R88: =VLOOKUP(Q88,[1]ItemConfig!$A:$C,3,FALSE) -> 赤阳砂 | S88: 1204 | T88: =VLOOKUP(S88,[1]ItemConfig!$A:$C,3,FALSE) -> 火灵果 | U88: 1203 | V88: =VLOOKUP(U88,[1]ItemConfig!$A:$C,3,FALSE) -> 赤阳砂
A89: 85 | B89: 85 | C89: 1840 | D89: 184 | E89: 180 | F89: 184 | G89: 92 | H89: 92 | I89: 1840 | L89: 12.4 | M89: 1203 | N89: =VLOOKUP(M89,[1]ItemConfig!$A:$C,3,FALSE) -> 赤阳砂 | O89: 1204 | P89: =VLOOKUP(O89,[1]ItemConfig!$A:$C,3,FALSE) -> 火灵果 | Q89: 1203 | R89: =VLOOKUP(Q89,[1]ItemConfig!$A:$C,3,FALSE) -> 赤阳砂 | S89: 1204 | T89: =VLOOKUP(S89,[1]ItemConfig!$A:$C,3,FALSE) -> 火灵果 | U89: 1203 | V89: =VLOOKUP(U89,[1]ItemConfig!$A:$C,3,FALSE) -> 赤阳砂
A90: 86 | B90: 86 | C90: 1850 | D90: 185 | E90: 190 | F90: 185 | G90: 92.5 | H90: 92.5 | I90: 1850 | L90: 12.5 | M90: 1203 | N90: =VLOOKUP(M90,[1]ItemConfig!$A:$C,3,FALSE) -> 赤阳砂 | O90: 1204 | P90: =VLOOKUP(O90,[1]ItemConfig!$A:$C,3,FALSE) -> 火灵果 | Q90: 1203 | R90: =VLOOKUP(Q90,[1]ItemConfig!$A:$C,3,FALSE) -> 赤阳砂 | S90: 1204 | T90: =VLOOKUP(S90,[1]ItemConfig!$A:$C,3,FALSE) -> 火灵果 | U90: 1203 | V90: =VLOOKUP(U90,[1]ItemConfig!$A:$C,3,FALSE) -> 赤阳砂
A91: 87 | B91: 87 | C91: 1860 | D91: 186 | E91: 190 | F91: 186 | G91: 93 | H91: 93 | I91: 1860 | L91: 12.6 | M91: 1203 | N91: =VLOOKUP(M91,[1]ItemConfig!$A:$C,3,FALSE) -> 赤阳砂 | O91: 1204 | P91: =VLOOKUP(O91,[1]ItemConfig!$A:$C,3,FALSE) -> 火灵果 | Q91: 1203 | R91: =VLOOKUP(Q91,[1]ItemConfig!$A:$C,3,FALSE) -> 赤阳砂 | S91: 1204 | T91: =VLOOKUP(S91,[1]ItemConfig!$A:$C,3,FALSE) -> 火灵果 | U91: 1203 | V91: =VLOOKUP(U91,[1]ItemConfig!$A:$C,3,FALSE) -> 赤阳砂
A92: 88 | B92: 88 | C92: 1870 | D92: 187 | E92: 190 | F92: 187 | G92: 93.5 | H92: 93.5 | I92: 1870 | L92: 12.7 | M92: 1203 | N92: =VLOOKUP(M92,[1]ItemConfig!$A:$C,3,FALSE) -> 赤阳砂 | O92: 1204 | P92: =VLOOKUP(O92,[1]ItemConfig!$A:$C,3,FALSE) -> 火灵果 | Q92: 1203 | R92: =VLOOKUP(Q92,[1]ItemConfig!$A:$C,3,FALSE) -> 赤阳砂 | S92: 1204 | T92: =VLOOKUP(S92,[1]ItemConfig!$A:$C,3,FALSE) -> 火灵果 | U92: 1203 | V92: =VLOOKUP(U92,[1]ItemConfig!$A:$C,3,FALSE) -> 赤阳砂
A93: 89 | B93: 89 | C93: 1880 | D93: 188 | E93: 190 | F93: 188 | G93: 94 | H93: 94 | I93: 1880 | L93: 12.8 | M93: 1203 | N93: =VLOOKUP(M93,[1]ItemConfig!$A:$C,3,FALSE) -> 赤阳砂 | O93: 1204 | P93: =VLOOKUP(O93,[1]ItemConfig!$A:$C,3,FALSE) -> 火灵果 | Q93: 1203 | R93: =VLOOKUP(Q93,[1]ItemConfig!$A:$C,3,FALSE) -> 赤阳砂 | S93: 1204 | T93: =VLOOKUP(S93,[1]ItemConfig!$A:$C,3,FALSE) -> 火灵果 | U93: 1203 | V93: =VLOOKUP(U93,[1]ItemConfig!$A:$C,3,FALSE) -> 赤阳砂
A94: 90 | B94: 90 | C94: 1890 | D94: 189 | E94: 190 | F94: 189 | G94: 94.5 | H94: 94.5 | I94: 1890 | L94: 12.9 | M94: 1203 | N94: =VLOOKUP(M94,[1]ItemConfig!$A:$C,3,FALSE) -> 赤阳砂 | O94: 1204 | P94: =VLOOKUP(O94,[1]ItemConfig!$A:$C,3,FALSE) -> 火灵果 | Q94: 1203 | R94: =VLOOKUP(Q94,[1]ItemConfig!$A:$C,3,FALSE) -> 赤阳砂 | S94: 1204 | T94: =VLOOKUP(S94,[1]ItemConfig!$A:$C,3,FALSE) -> 火灵果 | U94: 1203 | V94: =VLOOKUP(U94,[1]ItemConfig!$A:$C,3,FALSE) -> 赤阳砂
A95: 91 | B95: 91 | C95: 1900 | D95: 190 | E95: 190 | F95: 190 | G95: 95 | H95: 95 | I95: 1900 | L95: 13 | M95: 1205 | N95: =VLOOKUP(M95,[1]ItemConfig!$A:$C,3,FALSE) -> 婴魂草 | O95: 1206 | P95: =VLOOKUP(O95,[1]ItemConfig!$A:$C,3,FALSE) -> 灵魄藤 | Q95: 1205 | R95: =VLOOKUP(Q95,[1]ItemConfig!$A:$C,3,FALSE) -> 婴魂草 | S95: 1206 | T95: =VLOOKUP(S95,[1]ItemConfig!$A:$C,3,FALSE) -> 灵魄藤 | U95: 1205 | V95: =VLOOKUP(U95,[1]ItemConfig!$A:$C,3,FALSE) -> 婴魂草
A96: 92 | B96: 92 | C96: =ROUND($I96*C$5/$I$5,0) -> 1910 | D96: 191 | E96: 190 | F96: 191 | G96: 95.5 | H96: 95.5 | I96: 1910 | L96: 13.1 | M96: 1205 | N96: =VLOOKUP(M96,[1]ItemConfig!$A:$C,3,FALSE) -> 婴魂草 | O96: 1206 | P96: =VLOOKUP(O96,[1]ItemConfig!$A:$C,3,FALSE) -> 灵魄藤 | Q96: 1205 | R96: =VLOOKUP(Q96,[1]ItemConfig!$A:$C,3,FALSE) -> 婴魂草 | S96: 1206 | T96: =VLOOKUP(S96,[1]ItemConfig!$A:$C,3,FALSE) -> 灵魄藤 | U96: 1205 | V96: =VLOOKUP(U96,[1]ItemConfig!$A:$C,3,FALSE) -> 婴魂草
A97: 93 | B97: 93 | C97: 1920 | D97: 192 | E97: 190 | F97: 192 | G97: 96 | H97: 96 | I97: 1920 | L97: 13.2 | M97: 1205 | N97: =VLOOKUP(M97,[1]ItemConfig!$A:$C,3,FALSE) -> 婴魂草 | O97: 1206 | P97: =VLOOKUP(O97,[1]ItemConfig!$A:$C,3,FALSE) -> 灵魄藤 | Q97: 1205 | R97: =VLOOKUP(Q97,[1]ItemConfig!$A:$C,3,FALSE) -> 婴魂草 | S97: 1206 | T97: =VLOOKUP(S97,[1]ItemConfig!$A:$C,3,FALSE) -> 灵魄藤 | U97: 1205 | V97: =VLOOKUP(U97,[1]ItemConfig!$A:$C,3,FALSE) -> 婴魂草
A98: 94 | B98: 94 | C98: 1930 | D98: 193 | E98: 190 | F98: 193 | G98: 96.5 | H98: 96.5 | I98: 1930 | L98: 13.3 | M98: 1205 | N98: =VLOOKUP(M98,[1]ItemConfig!$A:$C,3,FALSE) -> 婴魂草 | O98: 1206 | P98: =VLOOKUP(O98,[1]ItemConfig!$A:$C,3,FALSE) -> 灵魄藤 | Q98: 1205 | R98: =VLOOKUP(Q98,[1]ItemConfig!$A:$C,3,FALSE) -> 婴魂草 | S98: 1206 | T98: =VLOOKUP(S98,[1]ItemConfig!$A:$C,3,FALSE) -> 灵魄藤 | U98: 1205 | V98: =VLOOKUP(U98,[1]ItemConfig!$A:$C,3,FALSE) -> 婴魂草
A99: 95 | B99: 95 | C99: 1940 | D99: 194 | E99: 190 | F99: 194 | G99: 97 | H99: 97 | I99: 1940 | L99: 13.4 | M99: 1205 | N99: =VLOOKUP(M99,[1]ItemConfig!$A:$C,3,FALSE) -> 婴魂草 | O99: 1206 | P99: =VLOOKUP(O99,[1]ItemConfig!$A:$C,3,FALSE) -> 灵魄藤 | Q99: 1205 | R99: =VLOOKUP(Q99,[1]ItemConfig!$A:$C,3,FALSE) -> 婴魂草 | S99: 1206 | T99: =VLOOKUP(S99,[1]ItemConfig!$A:$C,3,FALSE) -> 灵魄藤 | U99: 1205 | V99: =VLOOKUP(U99,[1]ItemConfig!$A:$C,3,FALSE) -> 婴魂草
A100: 96 | B100: 96 | C100: 1950 | D100: 195 | E100: 200 | F100: 195 | G100: 97.5 | H100: 97.5 | I100: 1950 | L100: 13.5 | M100: 1205 | N100: =VLOOKUP(M100,[1]ItemConfig!$A:$C,3,FALSE) -> 婴魂草 | O100: 1206 | P100: =VLOOKUP(O100,[1]ItemConfig!$A:$C,3,FALSE) -> 灵魄藤 | Q100: 1205 | R100: =VLOOKUP(Q100,[1]ItemConfig!$A:$C,3,FALSE) -> 婴魂草 | S100: 1206 | T100: =VLOOKUP(S100,[1]ItemConfig!$A:$C,3,FALSE) -> 灵魄藤 | U100: 1205 | V100: =VLOOKUP(U100,[1]ItemConfig!$A:$C,3,FALSE) -> 婴魂草
A101: 97 | B101: 97 | C101: 1960 | D101: 196 | E101: 200 | F101: 196 | G101: 98 | H101: 98 | I101: 1960 | L101: 13.6 | M101: 1205 | N101: =VLOOKUP(M101,[1]ItemConfig!$A:$C,3,FALSE) -> 婴魂草 | O101: 1206 | P101: =VLOOKUP(O101,[1]ItemConfig!$A:$C,3,FALSE) -> 灵魄藤 | Q101: 1205 | R101: =VLOOKUP(Q101,[1]ItemConfig!$A:$C,3,FALSE) -> 婴魂草 | S101: 1206 | T101: =VLOOKUP(S101,[1]ItemConfig!$A:$C,3,FALSE) -> 灵魄藤 | U101: 1205 | V101: =VLOOKUP(U101,[1]ItemConfig!$A:$C,3,FALSE) -> 婴魂草
A102: 98 | B102: 98 | C102: 1970 | D102: 197 | E102: 200 | F102: 197 | G102: 98.5 | H102: 98.5 | I102: 1970 | L102: 13.7 | M102: 1205 | N102: =VLOOKUP(M102,[1]ItemConfig!$A:$C,3,FALSE) -> 婴魂草 | O102: 1206 | P102: =VLOOKUP(O102,[1]ItemConfig!$A:$C,3,FALSE) -> 灵魄藤 | Q102: 1205 | R102: =VLOOKUP(Q102,[1]ItemConfig!$A:$C,3,FALSE) -> 婴魂草 | S102: 1206 | T102: =VLOOKUP(S102,[1]ItemConfig!$A:$C,3,FALSE) -> 灵魄藤 | U102: 1205 | V102: =VLOOKUP(U102,[1]ItemConfig!$A:$C,3,FALSE) -> 婴魂草
A103: 99 | B103: 99 | C103: 1980 | D103: 198 | E103: 200 | F103: 198 | G103: 99 | H103: 99 | I103: 1980 | L103: 13.8 | M103: 1205 | N103: =VLOOKUP(M103,[1]ItemConfig!$A:$C,3,FALSE) -> 婴魂草 | O103: 1206 | P103: =VLOOKUP(O103,[1]ItemConfig!$A:$C,3,FALSE) -> 灵魄藤 | Q103: 1205 | R103: =VLOOKUP(Q103,[1]ItemConfig!$A:$C,3,FALSE) -> 婴魂草 | S103: 1206 | T103: =VLOOKUP(S103,[1]ItemConfig!$A:$C,3,FALSE) -> 灵魄藤 | U103: 1205 | V103: =VLOOKUP(U103,[1]ItemConfig!$A:$C,3,FALSE) -> 婴魂草
A104: 100 | B104: 100 | C104: 1990 | D104: 199 | E104: 200 | F104: 199 | G104: 99.5 | H104: 99.5 | I104: 1990 | L104: 13.9 | M104: 1205 | N104: =VLOOKUP(M104,[1]ItemConfig!$A:$C,3,FALSE) -> 婴魂草 | O104: 1206 | P104: =VLOOKUP(O104,[1]ItemConfig!$A:$C,3,FALSE) -> 灵魄藤 | Q104: 1205 | R104: =VLOOKUP(Q104,[1]ItemConfig!$A:$C,3,FALSE) -> 婴魂草 | S104: 1206 | T104: =VLOOKUP(S104,[1]ItemConfig!$A:$C,3,FALSE) -> 灵魄藤 | U104: 1205 | V104: =VLOOKUP(U104,[1]ItemConfig!$A:$C,3,FALSE) -> 婴魂草
A105: 101 | B105: 101 | C105: 2000 | D105: 200 | E105: 200 | F105: 200 | G105: 100 | H105: 100 | I105: 2000 | L105: 14 | M105: 1205 | N105: =VLOOKUP(M105,[1]ItemConfig!$A:$C,3,FALSE) -> 婴魂草 | O105: 1206 | P105: =VLOOKUP(O105,[1]ItemConfig!$A:$C,3,FALSE) -> 灵魄藤 | Q105: 1205 | R105: =VLOOKUP(Q105,[1]ItemConfig!$A:$C,3,FALSE) -> 婴魂草 | S105: 1206 | T105: =VLOOKUP(S105,[1]ItemConfig!$A:$C,3,FALSE) -> 灵魄藤 | U105: 1205 | V105: =VLOOKUP(U105,[1]ItemConfig!$A:$C,3,FALSE) -> 婴魂草
A106: 102 | B106: 102 | C106: =ROUND($I106*C$5/$I$5,0) -> 2010 | D106: 201 | E106: 200 | F106: 201 | G106: 100.5 | H106: 100.5 | I106: 2010 | L106: 14.1 | M106: 1205 | N106: =VLOOKUP(M106,[1]ItemConfig!$A:$C,3,FALSE) -> 婴魂草 | O106: 1206 | P106: =VLOOKUP(O106,[1]ItemConfig!$A:$C,3,FALSE) -> 灵魄藤 | Q106: 1205 | R106: =VLOOKUP(Q106,[1]ItemConfig!$A:$C,3,FALSE) -> 婴魂草 | S106: 1206 | T106: =VLOOKUP(S106,[1]ItemConfig!$A:$C,3,FALSE) -> 灵魄藤 | U106: 1205 | V106: =VLOOKUP(U106,[1]ItemConfig!$A:$C,3,FALSE) -> 婴魂草
A107: 103 | B107: 103 | C107: 2020 | D107: 202 | E107: 200 | F107: 202 | G107: 101 | H107: 101 | I107: 2020.05 | L107: 14.2 | M107: 1205 | N107: =VLOOKUP(M107,[1]ItemConfig!$A:$C,3,FALSE) -> 婴魂草 | O107: 1206 | P107: =VLOOKUP(O107,[1]ItemConfig!$A:$C,3,FALSE) -> 灵魄藤 | Q107: 1205 | R107: =VLOOKUP(Q107,[1]ItemConfig!$A:$C,3,FALSE) -> 婴魂草 | S107: 1206 | T107: =VLOOKUP(S107,[1]ItemConfig!$A:$C,3,FALSE) -> 灵魄藤 | U107: 1205 | V107: =VLOOKUP(U107,[1]ItemConfig!$A:$C,3,FALSE) -> 婴魂草
A108: 104 | B108: 104 | C108: 2030 | D108: 203 | E108: 200 | F108: 203 | G108: 101.5 | H108: 101.5 | I108: 2030.15025 | L108: 14.3 | M108: 1205 | N108: =VLOOKUP(M108,[1]ItemConfig!$A:$C,3,FALSE) -> 婴魂草 | O108: 1206 | P108: =VLOOKUP(O108,[1]ItemConfig!$A:$C,3,FALSE) -> 灵魄藤 | Q108: 1205 | R108: =VLOOKUP(Q108,[1]ItemConfig!$A:$C,3,FALSE) -> 婴魂草 | S108: 1206 | T108: =VLOOKUP(S108,[1]ItemConfig!$A:$C,3,FALSE) -> 灵魄藤 | U108: 1205 | V108: =VLOOKUP(U108,[1]ItemConfig!$A:$C,3,FALSE) -> 婴魂草
A109: 105 | B109: 105 | C109: 2040 | D109: 204 | E109: 200 | F109: 204 | G109: 102 | H109: 102 | I109: 2040.301001 | L109: 14.4 | M109: 1205 | N109: =VLOOKUP(M109,[1]ItemConfig!$A:$C,3,FALSE) -> 婴魂草 | O109: 1206 | P109: =VLOOKUP(O109,[1]ItemConfig!$A:$C,3,FALSE) -> 灵魄藤 | Q109: 1205 | R109: =VLOOKUP(Q109,[1]ItemConfig!$A:$C,3,FALSE) -> 婴魂草 | S109: 1206 | T109: =VLOOKUP(S109,[1]ItemConfig!$A:$C,3,FALSE) -> 灵魄藤 | U109: 1205 | V109: =VLOOKUP(U109,[1]ItemConfig!$A:$C,3,FALSE) -> 婴魂草
A110: 106 | B110: 106 | C110: 2051 | D110: 205 | E110: 210 | F110: 205 | G110: 102.5 | H110: 102.5 | I110: 2050.502506 | L110: 14.5 | M110: 1205 | N110: =VLOOKUP(M110,[1]ItemConfig!$A:$C,3,FALSE) -> 婴魂草 | O110: 1206 | P110: =VLOOKUP(O110,[1]ItemConfig!$A:$C,3,FALSE) -> 灵魄藤 | Q110: 1205 | R110: =VLOOKUP(Q110,[1]ItemConfig!$A:$C,3,FALSE) -> 婴魂草 | S110: 1206 | T110: =VLOOKUP(S110,[1]ItemConfig!$A:$C,3,FALSE) -> 灵魄藤 | U110: 1205 | V110: =VLOOKUP(U110,[1]ItemConfig!$A:$C,3,FALSE) -> 婴魂草
A111: 107 | B111: 107 | C111: 2061 | D111: 206 | E111: 210 | F111: 206 | G111: 103 | H111: 103 | I111: 2060.755019 | L111: 14.6 | M111: 1205 | N111: =VLOOKUP(M111,[1]ItemConfig!$A:$C,3,FALSE) -> 婴魂草 | O111: 1206 | P111: =VLOOKUP(O111,[1]ItemConfig!$A:$C,3,FALSE) -> 灵魄藤 | Q111: 1205 | R111: =VLOOKUP(Q111,[1]ItemConfig!$A:$C,3,FALSE) -> 婴魂草 | S111: 1206 | T111: =VLOOKUP(S111,[1]ItemConfig!$A:$C,3,FALSE) -> 灵魄藤 | U111: 1205 | V111: =VLOOKUP(U111,[1]ItemConfig!$A:$C,3,FALSE) -> 婴魂草
A112: 108 | B112: 108 | C112: 2071 | D112: 207 | E112: 210 | F112: 207 | G112: 103.5 | H112: 103.5 | I112: 2071.058794 | L112: 14.7 | M112: 1205 | N112: =VLOOKUP(M112,[1]ItemConfig!$A:$C,3,FALSE) -> 婴魂草 | O112: 1206 | P112: =VLOOKUP(O112,[1]ItemConfig!$A:$C,3,FALSE) -> 灵魄藤 | Q112: 1205 | R112: =VLOOKUP(Q112,[1]ItemConfig!$A:$C,3,FALSE) -> 婴魂草 | S112: 1206 | T112: =VLOOKUP(S112,[1]ItemConfig!$A:$C,3,FALSE) -> 灵魄藤 | U112: 1205 | V112: =VLOOKUP(U112,[1]ItemConfig!$A:$C,3,FALSE) -> 婴魂草
A113: 109 | B113: 109 | C113: 2081 | D113: 208 | E113: 210 | F113: 208 | G113: 104 | H113: 104 | I113: 2081.414088 | L113: 14.8 | M113: 1205 | N113: =VLOOKUP(M113,[1]ItemConfig!$A:$C,3,FALSE) -> 婴魂草 | O113: 1206 | P113: =VLOOKUP(O113,[1]ItemConfig!$A:$C,3,FALSE) -> 灵魄藤 | Q113: 1205 | R113: =VLOOKUP(Q113,[1]ItemConfig!$A:$C,3,FALSE) -> 婴魂草 | S113: 1206 | T113: =VLOOKUP(S113,[1]ItemConfig!$A:$C,3,FALSE) -> 灵魄藤 | U113: 1205 | V113: =VLOOKUP(U113,[1]ItemConfig!$A:$C,3,FALSE) -> 婴魂草
A114: 110 | B114: 110 | C114: 2092 | D114: 209 | E114: 210 | F114: 209 | G114: 104.5 | H114: 104.5 | I114: 2091.821158 | L114: 14.9 | M114: 1205 | N114: =VLOOKUP(M114,[1]ItemConfig!$A:$C,3,FALSE) -> 婴魂草 | O114: 1206 | P114: =VLOOKUP(O114,[1]ItemConfig!$A:$C,3,FALSE) -> 灵魄藤 | Q114: 1205 | R114: =VLOOKUP(Q114,[1]ItemConfig!$A:$C,3,FALSE) -> 婴魂草 | S114: 1206 | T114: =VLOOKUP(S114,[1]ItemConfig!$A:$C,3,FALSE) -> 灵魄藤 | U114: 1205 | V114: =VLOOKUP(U114,[1]ItemConfig!$A:$C,3,FALSE) -> 婴魂草
A115: 111 | B115: 111 | C115: 2102 | D115: 210 | E115: 210 | F115: 210 | G115: 105 | H115: 105 | I115: 2102.280264 | L115: 15 | M115: 1205 | N115: =VLOOKUP(M115,[1]ItemConfig!$A:$C,3,FALSE) -> 婴魂草 | O115: 1206 | P115: =VLOOKUP(O115,[1]ItemConfig!$A:$C,3,FALSE) -> 灵魄藤 | Q115: 1205 | R115: =VLOOKUP(Q115,[1]ItemConfig!$A:$C,3,FALSE) -> 婴魂草 | S115: 1206 | T115: =VLOOKUP(S115,[1]ItemConfig!$A:$C,3,FALSE) -> 灵魄藤 | U115: 1205 | V115: =VLOOKUP(U115,[1]ItemConfig!$A:$C,3,FALSE) -> 婴魂草
A116: 112 | B116: 112 | C116: =ROUND($I116*C$5/$I$5,0) -> 2113 | D116: 211 | E116: 210 | F116: 211 | G116: 105.5 | H116: 105.5 | I116: 2112.791665 | L116: 15 | M116: 1205 | N116: =VLOOKUP(M116,[1]ItemConfig!$A:$C,3,FALSE) -> 婴魂草 | O116: 1206 | P116: =VLOOKUP(O116,[1]ItemConfig!$A:$C,3,FALSE) -> 灵魄藤 | Q116: 1205 | R116: =VLOOKUP(Q116,[1]ItemConfig!$A:$C,3,FALSE) -> 婴魂草 | S116: 1206 | T116: =VLOOKUP(S116,[1]ItemConfig!$A:$C,3,FALSE) -> 灵魄藤 | U116: 1205 | V116: =VLOOKUP(U116,[1]ItemConfig!$A:$C,3,FALSE) -> 婴魂草
A117: 113 | B117: 113 | C117: 2123 | D117: 212 | E117: 210 | F117: 212 | G117: 106 | H117: 106 | I117: 2123.355624 | L117: 15 | M117: 1205 | N117: =VLOOKUP(M117,[1]ItemConfig!$A:$C,3,FALSE) -> 婴魂草 | O117: 1206 | P117: =VLOOKUP(O117,[1]ItemConfig!$A:$C,3,FALSE) -> 灵魄藤 | Q117: 1205 | R117: =VLOOKUP(Q117,[1]ItemConfig!$A:$C,3,FALSE) -> 婴魂草 | S117: 1206 | T117: =VLOOKUP(S117,[1]ItemConfig!$A:$C,3,FALSE) -> 灵魄藤 | U117: 1205 | V117: =VLOOKUP(U117,[1]ItemConfig!$A:$C,3,FALSE) -> 婴魂草
A118: 114 | B118: 114 | C118: 2134 | D118: 213 | E118: 210 | F118: 213 | G118: 106.5 | H118: 106.5 | I118: 2133.972402 | L118: 15 | M118: 1205 | N118: =VLOOKUP(M118,[1]ItemConfig!$A:$C,3,FALSE) -> 婴魂草 | O118: 1206 | P118: =VLOOKUP(O118,[1]ItemConfig!$A:$C,3,FALSE) -> 灵魄藤 | Q118: 1205 | R118: =VLOOKUP(Q118,[1]ItemConfig!$A:$C,3,FALSE) -> 婴魂草 | S118: 1206 | T118: =VLOOKUP(S118,[1]ItemConfig!$A:$C,3,FALSE) -> 灵魄藤 | U118: 1205 | V118: =VLOOKUP(U118,[1]ItemConfig!$A:$C,3,FALSE) -> 婴魂草
A119: 115 | B119: 115 | C119: 2145 | D119: 214 | E119: 210 | F119: 214 | G119: 107 | H119: 107 | I119: 2144.642264 | L119: 15 | M119: 1205 | N119: =VLOOKUP(M119,[1]ItemConfig!$A:$C,3,FALSE) -> 婴魂草 | O119: 1206 | P119: =VLOOKUP(O119,[1]ItemConfig!$A:$C,3,FALSE) -> 灵魄藤 | Q119: 1205 | R119: =VLOOKUP(Q119,[1]ItemConfig!$A:$C,3,FALSE) -> 婴魂草 | S119: 1206 | T119: =VLOOKUP(S119,[1]ItemConfig!$A:$C,3,FALSE) -> 灵魄藤 | U119: 1205 | V119: =VLOOKUP(U119,[1]ItemConfig!$A:$C,3,FALSE) -> 婴魂草
A120: 116 | B120: 116 | C120: 2155 | D120: 216 | E120: 220 | F120: 216 | G120: 107.5 | H120: 107.5 | I120: 2155.365475 | L120: 15 | M120: 1205 | N120: =VLOOKUP(M120,[1]ItemConfig!$A:$C,3,FALSE) -> 婴魂草 | O120: 1206 | P120: =VLOOKUP(O120,[1]ItemConfig!$A:$C,3,FALSE) -> 灵魄藤 | Q120: 1205 | R120: =VLOOKUP(Q120,[1]ItemConfig!$A:$C,3,FALSE) -> 婴魂草 | S120: 1206 | T120: =VLOOKUP(S120,[1]ItemConfig!$A:$C,3,FALSE) -> 灵魄藤 | U120: 1205 | V120: =VLOOKUP(U120,[1]ItemConfig!$A:$C,3,FALSE) -> 婴魂草
A121: 117 | B121: 117 | C121: 2166 | D121: 217 | E121: 220 | F121: 217 | G121: 108 | H121: 108 | I121: 2166.142303 | L121: 15 | M121: 1205 | N121: =VLOOKUP(M121,[1]ItemConfig!$A:$C,3,FALSE) -> 婴魂草 | O121: 1206 | P121: =VLOOKUP(O121,[1]ItemConfig!$A:$C,3,FALSE) -> 灵魄藤 | Q121: 1205 | R121: =VLOOKUP(Q121,[1]ItemConfig!$A:$C,3,FALSE) -> 婴魂草 | S121: 1206 | T121: =VLOOKUP(S121,[1]ItemConfig!$A:$C,3,FALSE) -> 灵魄藤 | U121: 1205 | V121: =VLOOKUP(U121,[1]ItemConfig!$A:$C,3,FALSE) -> 婴魂草
A122: 118 | B122: 118 | C122: 2177 | D122: 218 | E122: 220 | F122: 218 | G122: 108.5 | H122: 108.5 | I122: 2176.973014 | L122: 15 | M122: 1205 | N122: =VLOOKUP(M122,[1]ItemConfig!$A:$C,3,FALSE) -> 婴魂草 | O122: 1206 | P122: =VLOOKUP(O122,[1]ItemConfig!$A:$C,3,FALSE) -> 灵魄藤 | Q122: 1205 | R122: =VLOOKUP(Q122,[1]ItemConfig!$A:$C,3,FALSE) -> 婴魂草 | S122: 1206 | T122: =VLOOKUP(S122,[1]ItemConfig!$A:$C,3,FALSE) -> 灵魄藤 | U122: 1205 | V122: =VLOOKUP(U122,[1]ItemConfig!$A:$C,3,FALSE) -> 婴魂草
A123: 119 | B123: 119 | C123: 2188 | D123: 219 | E123: 220 | F123: 219 | G123: 109 | H123: 109 | I123: 2187.857879 | L123: 15 | M123: 1205 | N123: =VLOOKUP(M123,[1]ItemConfig!$A:$C,3,FALSE) -> 婴魂草 | O123: 1206 | P123: =VLOOKUP(O123,[1]ItemConfig!$A:$C,3,FALSE) -> 灵魄藤 | Q123: 1205 | R123: =VLOOKUP(Q123,[1]ItemConfig!$A:$C,3,FALSE) -> 婴魂草 | S123: 1206 | T123: =VLOOKUP(S123,[1]ItemConfig!$A:$C,3,FALSE) -> 灵魄藤 | U123: 1205 | V123: =VLOOKUP(U123,[1]ItemConfig!$A:$C,3,FALSE) -> 婴魂草
A124: 120 | B124: 120 | C124: 2199 | D124: 220 | E124: 220 | F124: 220 | G124: 109.5 | H124: 109.5 | I124: 2198.797169 | L124: 15 | M124: 1205 | N124: =VLOOKUP(M124,[1]ItemConfig!$A:$C,3,FALSE) -> 婴魂草 | O124: 1206 | P124: =VLOOKUP(O124,[1]ItemConfig!$A:$C,3,FALSE) -> 灵魄藤 | Q124: 1205 | R124: =VLOOKUP(Q124,[1]ItemConfig!$A:$C,3,FALSE) -> 婴魂草 | S124: 1206 | T124: =VLOOKUP(S124,[1]ItemConfig!$A:$C,3,FALSE) -> 灵魄藤 | U124: 1205 | V124: =VLOOKUP(U124,[1]ItemConfig!$A:$C,3,FALSE) -> 婴魂草
A125: 121 | B125: 121 | C125: 2210 | D125: 221 | E125: 220 | F125: 221 | G125: 110 | H125: 110 | I125: 2209.791154 | L125: 15 | M125: 1207 | N125: =VLOOKUP(M125,[1]ItemConfig!$A:$C,3,FALSE) -> 灵冥石 | O125: =M125+1 -> 1208 | P125: =VLOOKUP(O125,[1]ItemConfig!$A:$C,3,FALSE) -> 玄金砂 | Q125: =O125+1 -> 1209 | R125: =VLOOKUP(Q125,[1]ItemConfig!$A:$C,3,FALSE) -> 紫玄晶 | S125: =O125 -> 1208 | T125: =VLOOKUP(S125,[1]ItemConfig!$A:$C,3,FALSE) -> 玄金砂 | U125: =Q125 -> 1209 | V125: =VLOOKUP(U125,[1]ItemConfig!$A:$C,3,FALSE) -> 紫玄晶
A126: 122 | B126: 122 | C126: =ROUND($I126*C$5/$I$5,0) -> 2221 | D126: 222 | E126: 220 | F126: 222 | G126: 110.5 | H126: 110.5 | I126: 2220.84011 | L126: 15 | M126: 1207 | N126: =VLOOKUP(M126,[1]ItemConfig!$A:$C,3,FALSE) -> 灵冥石 | O126: =M126+1 -> 1208 | P126: =VLOOKUP(O126,[1]ItemConfig!$A:$C,3,FALSE) -> 玄金砂 | Q126: 1209 | R126: =VLOOKUP(Q126,[1]ItemConfig!$A:$C,3,FALSE) -> 紫玄晶 | S126: =O126 -> 1208 | T126: =VLOOKUP(S126,[1]ItemConfig!$A:$C,3,FALSE) -> 玄金砂 | U126: =Q126 -> 1209 | V126: =VLOOKUP(U126,[1]ItemConfig!$A:$C,3,FALSE) -> 紫玄晶
A127: 123 | B127: 123 | C127: 2232 | D127: 223 | E127: 220 | F127: 223 | G127: 111 | H127: 111 | I127: 2231.944311 | L127: 15 | M127: 1207 | N127: =VLOOKUP(M127,[1]ItemConfig!$A:$C,3,FALSE) -> 灵冥石 | O127: 1208 | P127: =VLOOKUP(O127,[1]ItemConfig!$A:$C,3,FALSE) -> 玄金砂 | Q127: 1209 | R127: =VLOOKUP(Q127,[1]ItemConfig!$A:$C,3,FALSE) -> 紫玄晶 | S127: 1208 | T127: =VLOOKUP(S127,[1]ItemConfig!$A:$C,3,FALSE) -> 玄金砂 | U127: 1209 | V127: =VLOOKUP(U127,[1]ItemConfig!$A:$C,3,FALSE) -> 紫玄晶
A128: 124 | B128: 124 | C128: 2243 | D128: 224 | E128: 220 | F128: 224 | G128: 111.5 | H128: 111.5 | I128: 2243.104032 | L128: 15 | M128: 1207 | N128: =VLOOKUP(M128,[1]ItemConfig!$A:$C,3,FALSE) -> 灵冥石 | O128: 1208 | P128: =VLOOKUP(O128,[1]ItemConfig!$A:$C,3,FALSE) -> 玄金砂 | Q128: 1209 | R128: =VLOOKUP(Q128,[1]ItemConfig!$A:$C,3,FALSE) -> 紫玄晶 | S128: 1208 | T128: =VLOOKUP(S128,[1]ItemConfig!$A:$C,3,FALSE) -> 玄金砂 | U128: 1209 | V128: =VLOOKUP(U128,[1]ItemConfig!$A:$C,3,FALSE) -> 紫玄晶
A129: 125 | B129: 125 | C129: 2254 | D129: 225 | E129: 230 | F129: 225 | G129: 112 | H129: 112 | I129: 2254.319552 | L129: 15 | M129: 1207 | N129: =VLOOKUP(M129,[1]ItemConfig!$A:$C,3,FALSE) -> 灵冥石 | O129: 1208 | P129: =VLOOKUP(O129,[1]ItemConfig!$A:$C,3,FALSE) -> 玄金砂 | Q129: 1209 | R129: =VLOOKUP(Q129,[1]ItemConfig!$A:$C,3,FALSE) -> 紫玄晶 | S129: 1208 | T129: =VLOOKUP(S129,[1]ItemConfig!$A:$C,3,FALSE) -> 玄金砂 | U129: 1209 | V129: =VLOOKUP(U129,[1]ItemConfig!$A:$C,3,FALSE) -> 紫玄晶
A130: 126 | B130: 126 | C130: 2266 | D130: 227 | E130: 230 | F130: 227 | G130: 112.5 | H130: 112.5 | I130: 2265.59115 | L130: 15 | M130: 1207 | N130: =VLOOKUP(M130,[1]ItemConfig!$A:$C,3,FALSE) -> 灵冥石 | O130: 1208 | P130: =VLOOKUP(O130,[1]ItemConfig!$A:$C,3,FALSE) -> 玄金砂 | Q130: 1209 | R130: =VLOOKUP(Q130,[1]ItemConfig!$A:$C,3,FALSE) -> 紫玄晶 | S130: 1208 | T130: =VLOOKUP(S130,[1]ItemConfig!$A:$C,3,FALSE) -> 玄金砂 | U130: 1209 | V130: =VLOOKUP(U130,[1]ItemConfig!$A:$C,3,FALSE) -> 紫玄晶
A131: 127 | B131: 127 | C131: 2277 | D131: 228 | E131: 230 | F131: 228 | G131: 113 | H131: 113 | I131: 2276.919106 | L131: 15 | M131: 1207 | N131: =VLOOKUP(M131,[1]ItemConfig!$A:$C,3,FALSE) -> 灵冥石 | O131: 1208 | P131: =VLOOKUP(O131,[1]ItemConfig!$A:$C,3,FALSE) -> 玄金砂 | Q131: 1209 | R131: =VLOOKUP(Q131,[1]ItemConfig!$A:$C,3,FALSE) -> 紫玄晶 | S131: 1208 | T131: =VLOOKUP(S131,[1]ItemConfig!$A:$C,3,FALSE) -> 玄金砂 | U131: 1209 | V131: =VLOOKUP(U131,[1]ItemConfig!$A:$C,3,FALSE) -> 紫玄晶
A132: 128 | B132: 128 | C132: 2288 | D132: 229 | E132: 230 | F132: 229 | G132: 113.5 | H132: 113.5 | I132: 2288.303701 | L132: 15 | M132: 1207 | N132: =VLOOKUP(M132,[1]ItemConfig!$A:$C,3,FALSE) -> 灵冥石 | O132: 1208 | P132: =VLOOKUP(O132,[1]ItemConfig!$A:$C,3,FALSE) -> 玄金砂 | Q132: 1209 | R132: =VLOOKUP(Q132,[1]ItemConfig!$A:$C,3,FALSE) -> 紫玄晶 | S132: 1208 | T132: =VLOOKUP(S132,[1]ItemConfig!$A:$C,3,FALSE) -> 玄金砂 | U132: 1209 | V132: =VLOOKUP(U132,[1]ItemConfig!$A:$C,3,FALSE) -> 紫玄晶
A133: 129 | B133: 129 | C133: 2300 | D133: 230 | E133: 230 | F133: 230 | G133: 114 | H133: 114 | I133: 2299.74522 | L133: 15 | M133: 1207 | N133: =VLOOKUP(M133,[1]ItemConfig!$A:$C,3,FALSE) -> 灵冥石 | O133: 1208 | P133: =VLOOKUP(O133,[1]ItemConfig!$A:$C,3,FALSE) -> 玄金砂 | Q133: 1209 | R133: =VLOOKUP(Q133,[1]ItemConfig!$A:$C,3,FALSE) -> 紫玄晶 | S133: 1208 | T133: =VLOOKUP(S133,[1]ItemConfig!$A:$C,3,FALSE) -> 玄金砂 | U133: 1209 | V133: =VLOOKUP(U133,[1]ItemConfig!$A:$C,3,FALSE) -> 紫玄晶
A134: 130 | B134: 130 | C134: 2311 | D134: 231 | E134: 230 | F134: 231 | G134: =H134 -> 114.5 | H134: 114.5 | I134: =MAX(I133+I$5*0.01,I133*$J$4) -> 2311.243946 | L134: 15 | M134: 1207 | N134: =VLOOKUP(M134,[1]ItemConfig!$A:$C,3,FALSE) -> 灵冥石 | O134: 1208 | P134: =VLOOKUP(O134,[1]ItemConfig!$A:$C,3,FALSE) -> 玄金砂 | Q134: 1209 | R134: =VLOOKUP(Q134,[1]ItemConfig!$A:$C,3,FALSE) -> 紫玄晶 | S134: 1208 | T134: =VLOOKUP(S134,[1]ItemConfig!$A:$C,3,FALSE) -> 玄金砂 | U134: 1209 | V134: =VLOOKUP(U134,[1]ItemConfig!$A:$C,3,FALSE) -> 紫玄晶
A135: 131 | B135: 131 | C135: 2323 | D135: 232 | E135: =ROUND($I135*E$5/$I$5*0.1,0)*10 -> 230 | F135: 232 | G135: 115 | H135: =H134+J$3 -> 115 | I135: 2322.800166 | L135: 15 | M135: 1207 | N135: =VLOOKUP(M135,[1]ItemConfig!$A:$C,3,FALSE) -> 灵冥石 | O135: 1208 | P135: =VLOOKUP(O135,[1]ItemConfig!$A:$C,3,FALSE) -> 玄金砂 | Q135: 1209 | R135: =VLOOKUP(Q135,[1]ItemConfig!$A:$C,3,FALSE) -> 紫玄晶 | S135: 1208 | T135: =VLOOKUP(S135,[1]ItemConfig!$A:$C,3,FALSE) -> 玄金砂 | U135: 1209 | V135: =VLOOKUP(U135,[1]ItemConfig!$A:$C,3,FALSE) -> 紫玄晶
A136: 132 | B136: 132 | C136: =ROUND($I136*C$5/$I$5,0) -> 2334 | D136: 233 | E136: 230 | F136: 233 | G136: 115.5 | H136: 115.5 | I136: 2334.414167 | L136: 15 | M136: 1207 | N136: =VLOOKUP(M136,[1]ItemConfig!$A:$C,3,FALSE) -> 灵冥石 | O136: 1208 | P136: =VLOOKUP(O136,[1]ItemConfig!$A:$C,3,FALSE) -> 玄金砂 | Q136: 1209 | R136: =VLOOKUP(Q136,[1]ItemConfig!$A:$C,3,FALSE) -> 紫玄晶 | S136: 1208 | T136: =VLOOKUP(S136,[1]ItemConfig!$A:$C,3,FALSE) -> 玄金砂 | U136: 1209 | V136: =VLOOKUP(U136,[1]ItemConfig!$A:$C,3,FALSE) -> 紫玄晶
A137: 133 | B137: 133 | C137: 2346 | D137: 235 | E137: 230 | F137: 235 | G137: 116 | H137: 116 | I137: 2346.086237 | L137: 15 | M137: 1207 | N137: =VLOOKUP(M137,[1]ItemConfig!$A:$C,3,FALSE) -> 灵冥石 | O137: 1208 | P137: =VLOOKUP(O137,[1]ItemConfig!$A:$C,3,FALSE) -> 玄金砂 | Q137: 1209 | R137: =VLOOKUP(Q137,[1]ItemConfig!$A:$C,3,FALSE) -> 紫玄晶 | S137: 1208 | T137: =VLOOKUP(S137,[1]ItemConfig!$A:$C,3,FALSE) -> 玄金砂 | U137: 1209 | V137: =VLOOKUP(U137,[1]ItemConfig!$A:$C,3,FALSE) -> 紫玄晶
A138: 134 | B138: 134 | C138: 2358 | D138: 236 | E138: 240 | F138: 236 | G138: 116.5 | H138: 116.5 | I138: 2357.816669 | L138: 15 | M138: 1207 | N138: =VLOOKUP(M138,[1]ItemConfig!$A:$C,3,FALSE) -> 灵冥石 | O138: 1208 | P138: =VLOOKUP(O138,[1]ItemConfig!$A:$C,3,FALSE) -> 玄金砂 | Q138: 1209 | R138: =VLOOKUP(Q138,[1]ItemConfig!$A:$C,3,FALSE) -> 紫玄晶 | S138: 1208 | T138: =VLOOKUP(S138,[1]ItemConfig!$A:$C,3,FALSE) -> 玄金砂 | U138: 1209 | V138: =VLOOKUP(U138,[1]ItemConfig!$A:$C,3,FALSE) -> 紫玄晶
A139: 135 | B139: 135 | C139: 2370 | D139: 237 | E139: 240 | F139: 237 | G139: 117 | H139: 117 | I139: 2369.605752 | L139: 15 | M139: 1207 | N139: =VLOOKUP(M139,[1]ItemConfig!$A:$C,3,FALSE) -> 灵冥石 | O139: 1208 | P139: =VLOOKUP(O139,[1]ItemConfig!$A:$C,3,FALSE) -> 玄金砂 | Q139: 1209 | R139: =VLOOKUP(Q139,[1]ItemConfig!$A:$C,3,FALSE) -> 紫玄晶 | S139: 1208 | T139: =VLOOKUP(S139,[1]ItemConfig!$A:$C,3,FALSE) -> 玄金砂 | U139: 1209 | V139: =VLOOKUP(U139,[1]ItemConfig!$A:$C,3,FALSE) -> 紫玄晶
A140: 136 | B140: 136 | C140: 2381 | D140: 238 | E140: 240 | F140: 238 | G140: 117.5 | H140: 117.5 | I140: 2381.453781 | L140: 15 | M140: 1207 | N140: =VLOOKUP(M140,[1]ItemConfig!$A:$C,3,FALSE) -> 灵冥石 | O140: 1208 | P140: =VLOOKUP(O140,[1]ItemConfig!$A:$C,3,FALSE) -> 玄金砂 | Q140: 1209 | R140: =VLOOKUP(Q140,[1]ItemConfig!$A:$C,3,FALSE) -> 紫玄晶 | S140: 1208 | T140: =VLOOKUP(S140,[1]ItemConfig!$A:$C,3,FALSE) -> 玄金砂 | U140: 1209 | V140: =VLOOKUP(U140,[1]ItemConfig!$A:$C,3,FALSE) -> 紫玄晶
A141: 137 | B141: 137 | C141: 2393 | D141: 239 | E141: 240 | F141: 239 | G141: 118 | H141: 118 | I141: 2393.36105 | L141: 15 | M141: 1207 | N141: =VLOOKUP(M141,[1]ItemConfig!$A:$C,3,FALSE) -> 灵冥石 | O141: 1208 | P141: =VLOOKUP(O141,[1]ItemConfig!$A:$C,3,FALSE) -> 玄金砂 | Q141: 1209 | R141: =VLOOKUP(Q141,[1]ItemConfig!$A:$C,3,FALSE) -> 紫玄晶 | S141: 1208 | T141: =VLOOKUP(S141,[1]ItemConfig!$A:$C,3,FALSE) -> 玄金砂 | U141: 1209 | V141: =VLOOKUP(U141,[1]ItemConfig!$A:$C,3,FALSE) -> 紫玄晶
A142: 138 | B142: 138 | C142: 2405 | D142: 241 | E142: 240 | F142: 241 | G142: 118.5 | H142: 118.5 | I142: 2405.327855 | L142: 15 | M142: 1207 | N142: =VLOOKUP(M142,[1]ItemConfig!$A:$C,3,FALSE) -> 灵冥石 | O142: 1208 | P142: =VLOOKUP(O142,[1]ItemConfig!$A:$C,3,FALSE) -> 玄金砂 | Q142: 1209 | R142: =VLOOKUP(Q142,[1]ItemConfig!$A:$C,3,FALSE) -> 紫玄晶 | S142: 1208 | T142: =VLOOKUP(S142,[1]ItemConfig!$A:$C,3,FALSE) -> 玄金砂 | U142: 1209 | V142: =VLOOKUP(U142,[1]ItemConfig!$A:$C,3,FALSE) -> 紫玄晶
A143: 139 | B143: 139 | C143: 2417 | D143: 242 | E143: 240 | F143: 242 | G143: 119 | H143: 119 | I143: 2417.354494 | L143: 15 | M143: 1207 | N143: =VLOOKUP(M143,[1]ItemConfig!$A:$C,3,FALSE) -> 灵冥石 | O143: 1208 | P143: =VLOOKUP(O143,[1]ItemConfig!$A:$C,3,FALSE) -> 玄金砂 | Q143: 1209 | R143: =VLOOKUP(Q143,[1]ItemConfig!$A:$C,3,FALSE) -> 紫玄晶 | S143: 1208 | T143: =VLOOKUP(S143,[1]ItemConfig!$A:$C,3,FALSE) -> 玄金砂 | U143: 1209 | V143: =VLOOKUP(U143,[1]ItemConfig!$A:$C,3,FALSE) -> 紫玄晶
A144: 140 | B144: 140 | C144: 2429 | D144: 243 | E144: 240 | F144: 243 | G144: 119.5 | H144: 119.5 | I144: 2429.441267 | L144: 15 | M144: 1207 | N144: =VLOOKUP(M144,[1]ItemConfig!$A:$C,3,FALSE) -> 灵冥石 | O144: 1208 | P144: =VLOOKUP(O144,[1]ItemConfig!$A:$C,3,FALSE) -> 玄金砂 | Q144: 1209 | R144: =VLOOKUP(Q144,[1]ItemConfig!$A:$C,3,FALSE) -> 紫玄晶 | S144: 1208 | T144: =VLOOKUP(S144,[1]ItemConfig!$A:$C,3,FALSE) -> 玄金砂 | U144: 1209 | V144: =VLOOKUP(U144,[1]ItemConfig!$A:$C,3,FALSE) -> 紫玄晶
A145: 141 | B145: 141 | C145: 2442 | D145: 244 | E145: 240 | F145: 244 | G145: 120 | H145: 120 | I145: 2441.588473 | L145: 15 | M145: 1207 | N145: =VLOOKUP(M145,[1]ItemConfig!$A:$C,3,FALSE) -> 灵冥石 | O145: 1208 | P145: =VLOOKUP(O145,[1]ItemConfig!$A:$C,3,FALSE) -> 玄金砂 | Q145: 1209 | R145: =VLOOKUP(Q145,[1]ItemConfig!$A:$C,3,FALSE) -> 紫玄晶 | S145: 1208 | T145: =VLOOKUP(S145,[1]ItemConfig!$A:$C,3,FALSE) -> 玄金砂 | U145: 1209 | V145: =VLOOKUP(U145,[1]ItemConfig!$A:$C,3,FALSE) -> 紫玄晶
A146: 142 | B146: 142 | C146: =ROUND($I146*C$5/$I$5,0) -> 2454 | D146: 245 | E146: 250 | F146: 245 | G146: 120.5 | H146: 120.5 | I146: 2453.796415 | L146: 15 | M146: 1207 | N146: =VLOOKUP(M146,[1]ItemConfig!$A:$C,3,FALSE) -> 灵冥石 | O146: 1208 | P146: =VLOOKUP(O146,[1]ItemConfig!$A:$C,3,FALSE) -> 玄金砂 | Q146: 1209 | R146: =VLOOKUP(Q146,[1]ItemConfig!$A:$C,3,FALSE) -> 紫玄晶 | S146: 1208 | T146: =VLOOKUP(S146,[1]ItemConfig!$A:$C,3,FALSE) -> 玄金砂 | U146: 1209 | V146: =VLOOKUP(U146,[1]ItemConfig!$A:$C,3,FALSE) -> 紫玄晶
A147: 143 | B147: 143 | C147: 2466 | D147: 247 | E147: 250 | F147: 247 | G147: 121 | H147: 121 | I147: 2466.065397 | L147: 15 | M147: 1207 | N147: =VLOOKUP(M147,[1]ItemConfig!$A:$C,3,FALSE) -> 灵冥石 | O147: 1208 | P147: =VLOOKUP(O147,[1]ItemConfig!$A:$C,3,FALSE) -> 玄金砂 | Q147: 1209 | R147: =VLOOKUP(Q147,[1]ItemConfig!$A:$C,3,FALSE) -> 紫玄晶 | S147: 1208 | T147: =VLOOKUP(S147,[1]ItemConfig!$A:$C,3,FALSE) -> 玄金砂 | U147: 1209 | V147: =VLOOKUP(U147,[1]ItemConfig!$A:$C,3,FALSE) -> 紫玄晶
A148: 144 | B148: 144 | C148: 2478 | D148: 248 | E148: 250 | F148: 248 | G148: 121.5 | H148: 121.5 | I148: 2478.395724 | L148: 15 | M148: 1207 | N148: =VLOOKUP(M148,[1]ItemConfig!$A:$C,3,FALSE) -> 灵冥石 | O148: 1208 | P148: =VLOOKUP(O148,[1]ItemConfig!$A:$C,3,FALSE) -> 玄金砂 | Q148: 1209 | R148: =VLOOKUP(Q148,[1]ItemConfig!$A:$C,3,FALSE) -> 紫玄晶 | S148: 1208 | T148: =VLOOKUP(S148,[1]ItemConfig!$A:$C,3,FALSE) -> 玄金砂 | U148: 1209 | V148: =VLOOKUP(U148,[1]ItemConfig!$A:$C,3,FALSE) -> 紫玄晶
A149: 145 | B149: 145 | C149: 2491 | D149: 249 | E149: 250 | F149: 249 | G149: 122 | H149: 122 | I149: 2490.787703 | L149: 15 | M149: 1207 | N149: =VLOOKUP(M149,[1]ItemConfig!$A:$C,3,FALSE) -> 灵冥石 | O149: 1208 | P149: =VLOOKUP(O149,[1]ItemConfig!$A:$C,3,FALSE) -> 玄金砂 | Q149: 1209 | R149: =VLOOKUP(Q149,[1]ItemConfig!$A:$C,3,FALSE) -> 紫玄晶 | S149: 1208 | T149: =VLOOKUP(S149,[1]ItemConfig!$A:$C,3,FALSE) -> 玄金砂 | U149: 1209 | V149: =VLOOKUP(U149,[1]ItemConfig!$A:$C,3,FALSE) -> 紫玄晶
A150: 146 | B150: 146 | C150: 2503 | D150: 250 | E150: 250 | F150: 250 | G150: 122.5 | H150: 122.5 | I150: 2503.241642 | L150: 15 | M150: 1207 | N150: =VLOOKUP(M150,[1]ItemConfig!$A:$C,3,FALSE) -> 灵冥石 | O150: 1208 | P150: =VLOOKUP(O150,[1]ItemConfig!$A:$C,3,FALSE) -> 玄金砂 | Q150: 1209 | R150: =VLOOKUP(Q150,[1]ItemConfig!$A:$C,3,FALSE) -> 紫玄晶 | S150: 1208 | T150: =VLOOKUP(S150,[1]ItemConfig!$A:$C,3,FALSE) -> 玄金砂 | U150: 1209 | V150: =VLOOKUP(U150,[1]ItemConfig!$A:$C,3,FALSE) -> 紫玄晶
A151: 147 | B151: 147 | C151: 2516 | D151: 252 | E151: 250 | F151: 252 | G151: 123 | H151: 123 | I151: 2515.75785 | L151: 15 | M151: 1207 | N151: =VLOOKUP(M151,[1]ItemConfig!$A:$C,3,FALSE) -> 灵冥石 | O151: 1208 | P151: =VLOOKUP(O151,[1]ItemConfig!$A:$C,3,FALSE) -> 玄金砂 | Q151: 1209 | R151: =VLOOKUP(Q151,[1]ItemConfig!$A:$C,3,FALSE) -> 紫玄晶 | S151: 1208 | T151: =VLOOKUP(S151,[1]ItemConfig!$A:$C,3,FALSE) -> 玄金砂 | U151: 1209 | V151: =VLOOKUP(U151,[1]ItemConfig!$A:$C,3,FALSE) -> 紫玄晶
A152: 148 | B152: 148 | C152: 2528 | D152: 253 | E152: 250 | F152: 253 | G152: 123.5 | H152: 123.5 | I152: 2528.336639 | L152: 15 | M152: 1207 | N152: =VLOOKUP(M152,[1]ItemConfig!$A:$C,3,FALSE) -> 灵冥石 | O152: 1208 | P152: =VLOOKUP(O152,[1]ItemConfig!$A:$C,3,FALSE) -> 玄金砂 | Q152: 1209 | R152: =VLOOKUP(Q152,[1]ItemConfig!$A:$C,3,FALSE) -> 紫玄晶 | S152: 1208 | T152: =VLOOKUP(S152,[1]ItemConfig!$A:$C,3,FALSE) -> 玄金砂 | U152: 1209 | V152: =VLOOKUP(U152,[1]ItemConfig!$A:$C,3,FALSE) -> 紫玄晶
A153: 149 | B153: 149 | C153: 2541 | D153: 254 | E153: 250 | F153: 254 | G153: 124 | H153: 124 | I153: 2540.978322 | L153: 15 | M153: 1207 | N153: =VLOOKUP(M153,[1]ItemConfig!$A:$C,3,FALSE) -> 灵冥石 | O153: 1208 | P153: =VLOOKUP(O153,[1]ItemConfig!$A:$C,3,FALSE) -> 玄金砂 | Q153: 1209 | R153: =VLOOKUP(Q153,[1]ItemConfig!$A:$C,3,FALSE) -> 紫玄晶 | S153: 1208 | T153: =VLOOKUP(S153,[1]ItemConfig!$A:$C,3,FALSE) -> 玄金砂 | U153: 1209 | V153: =VLOOKUP(U153,[1]ItemConfig!$A:$C,3,FALSE) -> 紫玄晶
A154: 150 | B154: 150 | C154: 2554 | D154: 255 | E154: 260 | F154: 255 | G154: 124.5 | H154: 124.5 | I154: 2553.683214 | L154: 15 | M154: 1207 | N154: =VLOOKUP(M154,[1]ItemConfig!$A:$C,3,FALSE) -> 灵冥石 | O154: 1208 | P154: =VLOOKUP(O154,[1]ItemConfig!$A:$C,3,FALSE) -> 玄金砂 | Q154: 1209 | R154: =VLOOKUP(Q154,[1]ItemConfig!$A:$C,3,FALSE) -> 紫玄晶 | S154: 1208 | T154: =VLOOKUP(S154,[1]ItemConfig!$A:$C,3,FALSE) -> 玄金砂 | U154: 1209 | V154: =VLOOKUP(U154,[1]ItemConfig!$A:$C,3,FALSE) -> 紫玄晶
A155: 151 | B155: 151 | C155: 2566 | D155: 257 | E155: 260 | F155: 257 | G155: 125 | H155: 125 | I155: 2566.45163 | L155: 15 | M155: 1210 | N155: =VLOOKUP(M155,[1]ItemConfig!$A:$C,3,FALSE) -> 丹心花 | O155: =M155+1 -> 1211 | P155: =VLOOKUP(O155,[1]ItemConfig!$A:$C,3,FALSE) -> 太冥草 | Q155: =O155+1 -> 1212 | R155: =VLOOKUP(Q155,[1]ItemConfig!$A:$C,3,FALSE) -> 星炎草 | S155: =O155 -> 1211 | T155: =VLOOKUP(S155,[1]ItemConfig!$A:$C,3,FALSE) -> 太冥草 | U155: =Q155 -> 1212 | V155: =VLOOKUP(U155,[1]ItemConfig!$A:$C,3,FALSE) -> 星炎草
A156: 152 | B156: 152 | C156: =ROUND($I156*C$5/$I$5,0) -> 2579 | D156: 258 | E156: 260 | F156: 258 | G156: 125.5 | H156: 125.5 | I156: 2579.283888 | L156: 15 | M156: 1210 | N156: =VLOOKUP(M156,[1]ItemConfig!$A:$C,3,FALSE) -> 丹心花 | O156: =M156+1 -> 1211 | P156: =VLOOKUP(O156,[1]ItemConfig!$A:$C,3,FALSE) -> 太冥草 | Q156: =O156+1 -> 1212 | R156: =VLOOKUP(Q156,[1]ItemConfig!$A:$C,3,FALSE) -> 星炎草 | S156: =O156 -> 1211 | T156: =VLOOKUP(S156,[1]ItemConfig!$A:$C,3,FALSE) -> 太冥草 | U156: =Q156 -> 1212 | V156: =VLOOKUP(U156,[1]ItemConfig!$A:$C,3,FALSE) -> 星炎草
A157: 153 | B157: 153 | C157: 2592 | D157: 259 | E157: 260 | F157: 259 | G157: 126 | H157: 126 | I157: 2592.180307 | L157: 15 | M157: 1210 | N157: =VLOOKUP(M157,[1]ItemConfig!$A:$C,3,FALSE) -> 丹心花 | O157: 1211 | P157: =VLOOKUP(O157,[1]ItemConfig!$A:$C,3,FALSE) -> 太冥草 | Q157: 1212 | R157: =VLOOKUP(Q157,[1]ItemConfig!$A:$C,3,FALSE) -> 星炎草 | S157: 1211 | T157: =VLOOKUP(S157,[1]ItemConfig!$A:$C,3,FALSE) -> 太冥草 | U157: 1212 | V157: =VLOOKUP(U157,[1]ItemConfig!$A:$C,3,FALSE) -> 星炎草
A158: 154 | B158: 154 | C158: 2605 | D158: 261 | E158: 260 | F158: 261 | G158: 126.5 | H158: 126.5 | I158: 2605.141209 | L158: 15 | M158: 1210 | N158: =VLOOKUP(M158,[1]ItemConfig!$A:$C,3,FALSE) -> 丹心花 | O158: 1211 | P158: =VLOOKUP(O158,[1]ItemConfig!$A:$C,3,FALSE) -> 太冥草 | Q158: 1212 | R158: =VLOOKUP(Q158,[1]ItemConfig!$A:$C,3,FALSE) -> 星炎草 | S158: 1211 | T158: =VLOOKUP(S158,[1]ItemConfig!$A:$C,3,FALSE) -> 太冥草 | U158: 1212 | V158: =VLOOKUP(U158,[1]ItemConfig!$A:$C,3,FALSE) -> 星炎草
A159: 155 | B159: 155 | C159: 2618 | D159: 262 | E159: 260 | F159: 262 | G159: 127 | H159: 127 | I159: 2618.166915 | L159: 15 | M159: 1210 | N159: =VLOOKUP(M159,[1]ItemConfig!$A:$C,3,FALSE) -> 丹心花 | O159: 1211 | P159: =VLOOKUP(O159,[1]ItemConfig!$A:$C,3,FALSE) -> 太冥草 | Q159: 1212 | R159: =VLOOKUP(Q159,[1]ItemConfig!$A:$C,3,FALSE) -> 星炎草 | S159: 1211 | T159: =VLOOKUP(S159,[1]ItemConfig!$A:$C,3,FALSE) -> 太冥草 | U159: 1212 | V159: =VLOOKUP(U159,[1]ItemConfig!$A:$C,3,FALSE) -> 星炎草
A160: 156 | B160: 156 | C160: 2631 | D160: 263 | E160: 260 | F160: 263 | G160: 127.5 | H160: 127.5 | I160: 2631.25775 | L160: 15 | M160: 1210 | N160: =VLOOKUP(M160,[1]ItemConfig!$A:$C,3,FALSE) -> 丹心花 | O160: 1211 | P160: =VLOOKUP(O160,[1]ItemConfig!$A:$C,3,FALSE) -> 太冥草 | Q160: 1212 | R160: =VLOOKUP(Q160,[1]ItemConfig!$A:$C,3,FALSE) -> 星炎草 | S160: 1211 | T160: =VLOOKUP(S160,[1]ItemConfig!$A:$C,3,FALSE) -> 太冥草 | U160: 1212 | V160: =VLOOKUP(U160,[1]ItemConfig!$A:$C,3,FALSE) -> 星炎草
A161: 157 | B161: 157 | C161: 2644 | D161: 264 | E161: 260 | F161: 264 | G161: 128 | H161: 128 | I161: 2644.414038 | L161: 15 | M161: 1210 | N161: =VLOOKUP(M161,[1]ItemConfig!$A:$C,3,FALSE) -> 丹心花 | O161: 1211 | P161: =VLOOKUP(O161,[1]ItemConfig!$A:$C,3,FALSE) -> 太冥草 | Q161: 1212 | R161: =VLOOKUP(Q161,[1]ItemConfig!$A:$C,3,FALSE) -> 星炎草 | S161: 1211 | T161: =VLOOKUP(S161,[1]ItemConfig!$A:$C,3,FALSE) -> 太冥草 | U161: 1212 | V161: =VLOOKUP(U161,[1]ItemConfig!$A:$C,3,FALSE) -> 星炎草
A162: 158 | B162: 158 | C162: 2658 | D162: 266 | E162: 270 | F162: 266 | G162: 128.5 | H162: 128.5 | I162: 2657.636109 | L162: 15 | M162: 1210 | N162: =VLOOKUP(M162,[1]ItemConfig!$A:$C,3,FALSE) -> 丹心花 | O162: 1211 | P162: =VLOOKUP(O162,[1]ItemConfig!$A:$C,3,FALSE) -> 太冥草 | Q162: 1212 | R162: =VLOOKUP(Q162,[1]ItemConfig!$A:$C,3,FALSE) -> 星炎草 | S162: 1211 | T162: =VLOOKUP(S162,[1]ItemConfig!$A:$C,3,FALSE) -> 太冥草 | U162: 1212 | V162: =VLOOKUP(U162,[1]ItemConfig!$A:$C,3,FALSE) -> 星炎草
A163: 159 | B163: 159 | C163: 2671 | D163: 267 | E163: 270 | F163: 267 | G163: 129 | H163: 129 | I163: 2670.924289 | L163: 15 | M163: 1210 | N163: =VLOOKUP(M163,[1]ItemConfig!$A:$C,3,FALSE) -> 丹心花 | O163: 1211 | P163: =VLOOKUP(O163,[1]ItemConfig!$A:$C,3,FALSE) -> 太冥草 | Q163: 1212 | R163: =VLOOKUP(Q163,[1]ItemConfig!$A:$C,3,FALSE) -> 星炎草 | S163: 1211 | T163: =VLOOKUP(S163,[1]ItemConfig!$A:$C,3,FALSE) -> 太冥草 | U163: 1212 | V163: =VLOOKUP(U163,[1]ItemConfig!$A:$C,3,FALSE) -> 星炎草
A164: 160 | B164: 160 | C164: 2684 | D164: 268 | E164: 270 | F164: 268 | G164: 129.5 | H164: 129.5 | I164: 2684.278911 | L164: 15 | M164: 1210 | N164: =VLOOKUP(M164,[1]ItemConfig!$A:$C,3,FALSE) -> 丹心花 | O164: 1211 | P164: =VLOOKUP(O164,[1]ItemConfig!$A:$C,3,FALSE) -> 太冥草 | Q164: 1212 | R164: =VLOOKUP(Q164,[1]ItemConfig!$A:$C,3,FALSE) -> 星炎草 | S164: 1211 | T164: =VLOOKUP(S164,[1]ItemConfig!$A:$C,3,FALSE) -> 太冥草 | U164: 1212 | V164: =VLOOKUP(U164,[1]ItemConfig!$A:$C,3,FALSE) -> 星炎草
A165: 161 | B165: 161 | C165: 2698 | D165: 270 | E165: 270 | F165: 270 | G165: 130 | H165: 130 | I165: 2697.700305 | L165: 15 | M165: 1210 | N165: =VLOOKUP(M165,[1]ItemConfig!$A:$C,3,FALSE) -> 丹心花 | O165: 1211 | P165: =VLOOKUP(O165,[1]ItemConfig!$A:$C,3,FALSE) -> 太冥草 | Q165: 1212 | R165: =VLOOKUP(Q165,[1]ItemConfig!$A:$C,3,FALSE) -> 星炎草 | S165: 1211 | T165: =VLOOKUP(S165,[1]ItemConfig!$A:$C,3,FALSE) -> 太冥草 | U165: 1212 | V165: =VLOOKUP(U165,[1]ItemConfig!$A:$C,3,FALSE) -> 星炎草
A166: 162 | B166: 162 | C166: =ROUND($I166*C$5/$I$5,0) -> 2711 | D166: 271 | E166: 270 | F166: 271 | G166: 130.5 | H166: 130.5 | I166: 2711.188807 | L166: 15 | M166: 1210 | N166: =VLOOKUP(M166,[1]ItemConfig!$A:$C,3,FALSE) -> 丹心花 | O166: 1211 | P166: =VLOOKUP(O166,[1]ItemConfig!$A:$C,3,FALSE) -> 太冥草 | Q166: 1212 | R166: =VLOOKUP(Q166,[1]ItemConfig!$A:$C,3,FALSE) -> 星炎草 | S166: 1211 | T166: =VLOOKUP(S166,[1]ItemConfig!$A:$C,3,FALSE) -> 太冥草 | U166: 1212 | V166: =VLOOKUP(U166,[1]ItemConfig!$A:$C,3,FALSE) -> 星炎草
A167: 163 | B167: 163 | C167: 2725 | D167: 272 | E167: 270 | F167: 272 | G167: 131 | H167: 131 | I167: 2724.744751 | L167: 15 | M167: 1210 | N167: =VLOOKUP(M167,[1]ItemConfig!$A:$C,3,FALSE) -> 丹心花 | O167: 1211 | P167: =VLOOKUP(O167,[1]ItemConfig!$A:$C,3,FALSE) -> 太冥草 | Q167: 1212 | R167: =VLOOKUP(Q167,[1]ItemConfig!$A:$C,3,FALSE) -> 星炎草 | S167: 1211 | T167: =VLOOKUP(S167,[1]ItemConfig!$A:$C,3,FALSE) -> 太冥草 | U167: 1212 | V167: =VLOOKUP(U167,[1]ItemConfig!$A:$C,3,FALSE) -> 星炎草
A168: 164 | B168: 164 | C168: 2738 | D168: 274 | E168: 270 | F168: 274 | G168: 131.5 | H168: 131.5 | I168: 2738.368474 | L168: 15 | M168: 1210 | N168: =VLOOKUP(M168,[1]ItemConfig!$A:$C,3,FALSE) -> 丹心花 | O168: 1211 | P168: =VLOOKUP(O168,[1]ItemConfig!$A:$C,3,FALSE) -> 太冥草 | Q168: 1212 | R168: =VLOOKUP(Q168,[1]ItemConfig!$A:$C,3,FALSE) -> 星炎草 | S168: 1211 | T168: =VLOOKUP(S168,[1]ItemConfig!$A:$C,3,FALSE) -> 太冥草 | U168: 1212 | V168: =VLOOKUP(U168,[1]ItemConfig!$A:$C,3,FALSE) -> 星炎草
A169: 165 | B169: 165 | C169: 2752 | D169: 275 | E169: 280 | F169: 275 | G169: 132 | H169: 132 | I169: 2752.060317 | L169: 15 | M169: 1210 | N169: =VLOOKUP(M169,[1]ItemConfig!$A:$C,3,FALSE) -> 丹心花 | O169: 1211 | P169: =VLOOKUP(O169,[1]ItemConfig!$A:$C,3,FALSE) -> 太冥草 | Q169: 1212 | R169: =VLOOKUP(Q169,[1]ItemConfig!$A:$C,3,FALSE) -> 星炎草 | S169: 1211 | T169: =VLOOKUP(S169,[1]ItemConfig!$A:$C,3,FALSE) -> 太冥草 | U169: 1212 | V169: =VLOOKUP(U169,[1]ItemConfig!$A:$C,3,FALSE) -> 星炎草
A170: 166 | B170: 166 | C170: 2766 | D170: 277 | E170: 280 | F170: 277 | G170: 132.5 | H170: 132.5 | I170: 2765.820618 | L170: 15 | M170: 1210 | N170: =VLOOKUP(M170,[1]ItemConfig!$A:$C,3,FALSE) -> 丹心花 | O170: 1211 | P170: =VLOOKUP(O170,[1]ItemConfig!$A:$C,3,FALSE) -> 太冥草 | Q170: 1212 | R170: =VLOOKUP(Q170,[1]ItemConfig!$A:$C,3,FALSE) -> 星炎草 | S170: 1211 | T170: =VLOOKUP(S170,[1]ItemConfig!$A:$C,3,FALSE) -> 太冥草 | U170: 1212 | V170: =VLOOKUP(U170,[1]ItemConfig!$A:$C,3,FALSE) -> 星炎草
A171: 167 | B171: 167 | C171: 2780 | D171: 278 | E171: 280 | F171: 278 | G171: 133 | H171: 133 | I171: 2779.649721 | L171: 15 | M171: 1210 | N171: =VLOOKUP(M171,[1]ItemConfig!$A:$C,3,FALSE) -> 丹心花 | O171: 1211 | P171: =VLOOKUP(O171,[1]ItemConfig!$A:$C,3,FALSE) -> 太冥草 | Q171: 1212 | R171: =VLOOKUP(Q171,[1]ItemConfig!$A:$C,3,FALSE) -> 星炎草 | S171: 1211 | T171: =VLOOKUP(S171,[1]ItemConfig!$A:$C,3,FALSE) -> 太冥草 | U171: 1212 | V171: =VLOOKUP(U171,[1]ItemConfig!$A:$C,3,FALSE) -> 星炎草
A172: 168 | B172: 168 | C172: 2794 | D172: 279 | E172: 280 | F172: 279 | G172: 133.5 | H172: 133.5 | I172: 2793.54797 | L172: 15 | M172: 1210 | N172: =VLOOKUP(M172,[1]ItemConfig!$A:$C,3,FALSE) -> 丹心花 | O172: 1211 | P172: =VLOOKUP(O172,[1]ItemConfig!$A:$C,3,FALSE) -> 太冥草 | Q172: 1212 | R172: =VLOOKUP(Q172,[1]ItemConfig!$A:$C,3,FALSE) -> 星炎草 | S172: 1211 | T172: =VLOOKUP(S172,[1]ItemConfig!$A:$C,3,FALSE) -> 太冥草 | U172: 1212 | V172: =VLOOKUP(U172,[1]ItemConfig!$A:$C,3,FALSE) -> 星炎草
A173: 169 | B173: 169 | C173: 2808 | D173: 281 | E173: 280 | F173: 281 | G173: 134 | H173: 134 | I173: 2807.51571 | L173: 15 | M173: 1210 | N173: =VLOOKUP(M173,[1]ItemConfig!$A:$C,3,FALSE) -> 丹心花 | O173: 1211 | P173: =VLOOKUP(O173,[1]ItemConfig!$A:$C,3,FALSE) -> 太冥草 | Q173: 1212 | R173: =VLOOKUP(Q173,[1]ItemConfig!$A:$C,3,FALSE) -> 星炎草 | S173: 1211 | T173: =VLOOKUP(S173,[1]ItemConfig!$A:$C,3,FALSE) -> 太冥草 | U173: 1212 | V173: =VLOOKUP(U173,[1]ItemConfig!$A:$C,3,FALSE) -> 星炎草
A174: 170 | B174: 170 | C174: 2822 | D174: 282 | E174: 280 | F174: 282 | G174: 134.5 | H174: 134.5 | I174: 2821.553288 | L174: 15 | M174: 1210 | N174: =VLOOKUP(M174,[1]ItemConfig!$A:$C,3,FALSE) -> 丹心花 | O174: 1211 | P174: =VLOOKUP(O174,[1]ItemConfig!$A:$C,3,FALSE) -> 太冥草 | Q174: 1212 | R174: =VLOOKUP(Q174,[1]ItemConfig!$A:$C,3,FALSE) -> 星炎草 | S174: 1211 | T174: =VLOOKUP(S174,[1]ItemConfig!$A:$C,3,FALSE) -> 太冥草 | U174: 1212 | V174: =VLOOKUP(U174,[1]ItemConfig!$A:$C,3,FALSE) -> 星炎草
A175: 171 | B175: 171 | C175: 2836 | D175: 284 | E175: 280 | F175: 284 | G175: 135 | H175: 135 | I175: 2835.661055 | L175: 15 | M175: 1210 | N175: =VLOOKUP(M175,[1]ItemConfig!$A:$C,3,FALSE) -> 丹心花 | O175: 1211 | P175: =VLOOKUP(O175,[1]ItemConfig!$A:$C,3,FALSE) -> 太冥草 | Q175: 1212 | R175: =VLOOKUP(Q175,[1]ItemConfig!$A:$C,3,FALSE) -> 星炎草 | S175: 1211 | T175: =VLOOKUP(S175,[1]ItemConfig!$A:$C,3,FALSE) -> 太冥草 | U175: 1212 | V175: =VLOOKUP(U175,[1]ItemConfig!$A:$C,3,FALSE) -> 星炎草
A176: 172 | B176: 172 | C176: =ROUND($I176*C$5/$I$5,0) -> 2850 | D176: 285 | E176: 280 | F176: 285 | G176: 135.5 | H176: 135.5 | I176: 2849.83936 | L176: 15 | M176: 1210 | N176: =VLOOKUP(M176,[1]ItemConfig!$A:$C,3,FALSE) -> 丹心花 | O176: 1211 | P176: =VLOOKUP(O176,[1]ItemConfig!$A:$C,3,FALSE) -> 太冥草 | Q176: 1212 | R176: =VLOOKUP(Q176,[1]ItemConfig!$A:$C,3,FALSE) -> 星炎草 | S176: 1211 | T176: =VLOOKUP(S176,[1]ItemConfig!$A:$C,3,FALSE) -> 太冥草 | U176: 1212 | V176: =VLOOKUP(U176,[1]ItemConfig!$A:$C,3,FALSE) -> 星炎草
A177: 173 | B177: 173 | C177: 2864 | D177: 286 | E177: 290 | F177: 286 | G177: 136 | H177: 136 | I177: 2864.088557 | L177: 15 | M177: 1210 | N177: =VLOOKUP(M177,[1]ItemConfig!$A:$C,3,FALSE) -> 丹心花 | O177: 1211 | P177: =VLOOKUP(O177,[1]ItemConfig!$A:$C,3,FALSE) -> 太冥草 | Q177: 1212 | R177: =VLOOKUP(Q177,[1]ItemConfig!$A:$C,3,FALSE) -> 星炎草 | S177: 1211 | T177: =VLOOKUP(S177,[1]ItemConfig!$A:$C,3,FALSE) -> 太冥草 | U177: 1212 | V177: =VLOOKUP(U177,[1]ItemConfig!$A:$C,3,FALSE) -> 星炎草
A178: 174 | B178: 174 | C178: 2878 | D178: 288 | E178: 290 | F178: 288 | G178: 136.5 | H178: 136.5 | I178: 2878.409 | L178: 15 | M178: 1210 | N178: =VLOOKUP(M178,[1]ItemConfig!$A:$C,3,FALSE) -> 丹心花 | O178: 1211 | P178: =VLOOKUP(O178,[1]ItemConfig!$A:$C,3,FALSE) -> 太冥草 | Q178: 1212 | R178: =VLOOKUP(Q178,[1]ItemConfig!$A:$C,3,FALSE) -> 星炎草 | S178: 1211 | T178: =VLOOKUP(S178,[1]ItemConfig!$A:$C,3,FALSE) -> 太冥草 | U178: 1212 | V178: =VLOOKUP(U178,[1]ItemConfig!$A:$C,3,FALSE) -> 星炎草
A179: 175 | B179: 175 | C179: 2893 | D179: 289 | E179: 290 | F179: 289 | G179: 137 | H179: 137 | I179: 2892.801045 | L179: 15 | M179: 1210 | N179: =VLOOKUP(M179,[1]ItemConfig!$A:$C,3,FALSE) -> 丹心花 | O179: 1211 | P179: =VLOOKUP(O179,[1]ItemConfig!$A:$C,3,FALSE) -> 太冥草 | Q179: 1212 | R179: =VLOOKUP(Q179,[1]ItemConfig!$A:$C,3,FALSE) -> 星炎草 | S179: 1211 | T179: =VLOOKUP(S179,[1]ItemConfig!$A:$C,3,FALSE) -> 太冥草 | U179: 1212 | V179: =VLOOKUP(U179,[1]ItemConfig!$A:$C,3,FALSE) -> 星炎草
A180: 176 | B180: 176 | C180: 2907 | D180: 291 | E180: 290 | F180: 291 | G180: 137.5 | H180: 137.5 | I180: 2907.26505 | L180: 15 | M180: 1210 | N180: =VLOOKUP(M180,[1]ItemConfig!$A:$C,3,FALSE) -> 丹心花 | O180: 1211 | P180: =VLOOKUP(O180,[1]ItemConfig!$A:$C,3,FALSE) -> 太冥草 | Q180: 1212 | R180: =VLOOKUP(Q180,[1]ItemConfig!$A:$C,3,FALSE) -> 星炎草 | S180: 1211 | T180: =VLOOKUP(S180,[1]ItemConfig!$A:$C,3,FALSE) -> 太冥草 | U180: 1212 | V180: =VLOOKUP(U180,[1]ItemConfig!$A:$C,3,FALSE) -> 星炎草
A181: 177 | B181: 177 | C181: 2922 | D181: 292 | E181: 290 | F181: 292 | G181: 138 | H181: 138 | I181: 2921.801375 | L181: 15 | M181: 1210 | N181: =VLOOKUP(M181,[1]ItemConfig!$A:$C,3,FALSE) -> 丹心花 | O181: 1211 | P181: =VLOOKUP(O181,[1]ItemConfig!$A:$C,3,FALSE) -> 太冥草 | Q181: 1212 | R181: =VLOOKUP(Q181,[1]ItemConfig!$A:$C,3,FALSE) -> 星炎草 | S181: 1211 | T181: =VLOOKUP(S181,[1]ItemConfig!$A:$C,3,FALSE) -> 太冥草 | U181: 1212 | V181: =VLOOKUP(U181,[1]ItemConfig!$A:$C,3,FALSE) -> 星炎草
A182: 178 | B182: 178 | C182: 2936 | D182: 294 | E182: 290 | F182: 294 | G182: 138.5 | H182: 138.5 | I182: 2936.410382 | L182: 15 | M182: 1210 | N182: =VLOOKUP(M182,[1]ItemConfig!$A:$C,3,FALSE) -> 丹心花 | O182: 1211 | P182: =VLOOKUP(O182,[1]ItemConfig!$A:$C,3,FALSE) -> 太冥草 | Q182: 1212 | R182: =VLOOKUP(Q182,[1]ItemConfig!$A:$C,3,FALSE) -> 星炎草 | S182: 1211 | T182: =VLOOKUP(S182,[1]ItemConfig!$A:$C,3,FALSE) -> 太冥草 | U182: 1212 | V182: =VLOOKUP(U182,[1]ItemConfig!$A:$C,3,FALSE) -> 星炎草
A183: 179 | B183: 179 | C183: 2951 | D183: 295 | E183: 300 | F183: 295 | G183: 139 | H183: 139 | I183: 2951.092434 | L183: 15 | M183: 1210 | N183: =VLOOKUP(M183,[1]ItemConfig!$A:$C,3,FALSE) -> 丹心花 | O183: 1211 | P183: =VLOOKUP(O183,[1]ItemConfig!$A:$C,3,FALSE) -> 太冥草 | Q183: 1212 | R183: =VLOOKUP(Q183,[1]ItemConfig!$A:$C,3,FALSE) -> 星炎草 | S183: 1211 | T183: =VLOOKUP(S183,[1]ItemConfig!$A:$C,3,FALSE) -> 太冥草 | U183: 1212 | V183: =VLOOKUP(U183,[1]ItemConfig!$A:$C,3,FALSE) -> 星炎草
A184: 180 | B184: 180 | C184: 2966 | D184: 297 | E184: 300 | F184: 297 | G184: 139.5 | H184: 139.5 | I184: 2965.847896 | L184: 15 | M184: 1210 | N184: =VLOOKUP(M184,[1]ItemConfig!$A:$C,3,FALSE) -> 丹心花 | O184: 1211 | P184: =VLOOKUP(O184,[1]ItemConfig!$A:$C,3,FALSE) -> 太冥草 | Q184: 1212 | R184: =VLOOKUP(Q184,[1]ItemConfig!$A:$C,3,FALSE) -> 星炎草 | S184: 1211 | T184: =VLOOKUP(S184,[1]ItemConfig!$A:$C,3,FALSE) -> 太冥草 | U184: 1212 | V184: =VLOOKUP(U184,[1]ItemConfig!$A:$C,3,FALSE) -> 星炎草
A185: 181 | B185: 181 | C185: 2981 | D185: 298 | E185: 300 | F185: 298 | G185: 140 | H185: 140 | I185: 2980.677136 | L185: 15 | M185: 1213 | N185: =VLOOKUP(M185,[1]ItemConfig!$A:$C,3,FALSE) -> 混元晶 | O185: =M185+1 -> 1214 | P185: =VLOOKUP(O185,[1]ItemConfig!$A:$C,3,FALSE) -> 地髓晶 | Q185: =O185+1 -> 1215 | R185: =VLOOKUP(Q185,[1]ItemConfig!$A:$C,3,FALSE) -> 灵月石 | S185: =O185 -> 1214 | T185: =VLOOKUP(S185,[1]ItemConfig!$A:$C,3,FALSE) -> 地髓晶 | U185: =Q185 -> 1215 | V185: =VLOOKUP(U185,[1]ItemConfig!$A:$C,3,FALSE) -> 灵月石
A186: 182 | B186: 182 | C186: =ROUND($I186*C$5/$I$5,0) -> 2996 | D186: 300 | E186: 300 | F186: 300 | G186: 140.5 | H186: 140.5 | I186: 2995.580521 | L186: 15 | M186: 1213 | N186: =VLOOKUP(M186,[1]ItemConfig!$A:$C,3,FALSE) -> 混元晶 | O186: =M186+1 -> 1214 | P186: =VLOOKUP(O186,[1]ItemConfig!$A:$C,3,FALSE) -> 地髓晶 | Q186: =O186+1 -> 1215 | R186: =VLOOKUP(Q186,[1]ItemConfig!$A:$C,3,FALSE) -> 灵月石 | S186: =O186 -> 1214 | T186: =VLOOKUP(S186,[1]ItemConfig!$A:$C,3,FALSE) -> 地髓晶 | U186: =Q186 -> 1215 | V186: =VLOOKUP(U186,[1]ItemConfig!$A:$C,3,FALSE) -> 灵月石
A187: 183 | B187: 183 | C187: 3011 | D187: 301 | E187: 300 | F187: 301 | G187: 141 | H187: 141 | I187: 3010.558424 | L187: 15 | M187: 1213 | N187: =VLOOKUP(M187,[1]ItemConfig!$A:$C,3,FALSE) -> 混元晶 | O187: 1214 | P187: =VLOOKUP(O187,[1]ItemConfig!$A:$C,3,FALSE) -> 地髓晶 | Q187: 1215 | R187: =VLOOKUP(Q187,[1]ItemConfig!$A:$C,3,FALSE) -> 灵月石 | S187: 1214 | T187: =VLOOKUP(S187,[1]ItemConfig!$A:$C,3,FALSE) -> 地髓晶 | U187: 1215 | V187: =VLOOKUP(U187,[1]ItemConfig!$A:$C,3,FALSE) -> 灵月石
A188: 184 | B188: 184 | C188: 3026 | D188: 303 | E188: 300 | F188: 303 | G188: 141.5 | H188: 141.5 | I188: 3025.611216 | L188: 15 | M188: 1213 | N188: =VLOOKUP(M188,[1]ItemConfig!$A:$C,3,FALSE) -> 混元晶 | O188: 1214 | P188: =VLOOKUP(O188,[1]ItemConfig!$A:$C,3,FALSE) -> 地髓晶 | Q188: 1215 | R188: =VLOOKUP(Q188,[1]ItemConfig!$A:$C,3,FALSE) -> 灵月石 | S188: 1214 | T188: =VLOOKUP(S188,[1]ItemConfig!$A:$C,3,FALSE) -> 地髓晶 | U188: 1215 | V188: =VLOOKUP(U188,[1]ItemConfig!$A:$C,3,FALSE) -> 灵月石
A189: 185 | B189: 185 | C189: 3041 | D189: 304 | E189: 300 | F189: 304 | G189: 142 | H189: 142 | I189: 3040.739272 | L189: 15 | M189: 1213 | N189: =VLOOKUP(M189,[1]ItemConfig!$A:$C,3,FALSE) -> 混元晶 | O189: 1214 | P189: =VLOOKUP(O189,[1]ItemConfig!$A:$C,3,FALSE) -> 地髓晶 | Q189: 1215 | R189: =VLOOKUP(Q189,[1]ItemConfig!$A:$C,3,FALSE) -> 灵月石 | S189: 1214 | T189: =VLOOKUP(S189,[1]ItemConfig!$A:$C,3,FALSE) -> 地髓晶 | U189: 1215 | V189: =VLOOKUP(U189,[1]ItemConfig!$A:$C,3,FALSE) -> 灵月石
A190: 186 | B190: 186 | C190: 3056 | D190: 306 | E190: 310 | F190: 306 | G190: 142.5 | H190: 142.5 | I190: 3055.942969 | L190: 15 | M190: 1213 | N190: =VLOOKUP(M190,[1]ItemConfig!$A:$C,3,FALSE) -> 混元晶 | O190: 1214 | P190: =VLOOKUP(O190,[1]ItemConfig!$A:$C,3,FALSE) -> 地髓晶 | Q190: 1215 | R190: =VLOOKUP(Q190,[1]ItemConfig!$A:$C,3,FALSE) -> 灵月石 | S190: 1214 | T190: =VLOOKUP(S190,[1]ItemConfig!$A:$C,3,FALSE) -> 地髓晶 | U190: 1215 | V190: =VLOOKUP(U190,[1]ItemConfig!$A:$C,3,FALSE) -> 灵月石
A191: 187 | B191: 187 | C191: 3071 | D191: 307 | E191: 310 | F191: 307 | G191: 143 | H191: 143 | I191: 3071.222683 | L191: 15 | M191: 1213 | N191: =VLOOKUP(M191,[1]ItemConfig!$A:$C,3,FALSE) -> 混元晶 | O191: 1214 | P191: =VLOOKUP(O191,[1]ItemConfig!$A:$C,3,FALSE) -> 地髓晶 | Q191: 1215 | R191: =VLOOKUP(Q191,[1]ItemConfig!$A:$C,3,FALSE) -> 灵月石 | S191: 1214 | T191: =VLOOKUP(S191,[1]ItemConfig!$A:$C,3,FALSE) -> 地髓晶 | U191: 1215 | V191: =VLOOKUP(U191,[1]ItemConfig!$A:$C,3,FALSE) -> 灵月石
A192: 188 | B192: 188 | C192: 3087 | D192: 309 | E192: 310 | F192: 309 | G192: 143.5 | H192: 143.5 | I192: 3086.578797 | L192: 15 | M192: 1213 | N192: =VLOOKUP(M192,[1]ItemConfig!$A:$C,3,FALSE) -> 混元晶 | O192: 1214 | P192: =VLOOKUP(O192,[1]ItemConfig!$A:$C,3,FALSE) -> 地髓晶 | Q192: 1215 | R192: =VLOOKUP(Q192,[1]ItemConfig!$A:$C,3,FALSE) -> 灵月石 | S192: 1214 | T192: =VLOOKUP(S192,[1]ItemConfig!$A:$C,3,FALSE) -> 地髓晶 | U192: 1215 | V192: =VLOOKUP(U192,[1]ItemConfig!$A:$C,3,FALSE) -> 灵月石
A193: 189 | B193: 189 | C193: 3102 | D193: 310 | E193: 310 | F193: 310 | G193: 144 | H193: 144 | I193: 3102.011691 | L193: 15 | M193: 1213 | N193: =VLOOKUP(M193,[1]ItemConfig!$A:$C,3,FALSE) -> 混元晶 | O193: 1214 | P193: =VLOOKUP(O193,[1]ItemConfig!$A:$C,3,FALSE) -> 地髓晶 | Q193: 1215 | R193: =VLOOKUP(Q193,[1]ItemConfig!$A:$C,3,FALSE) -> 灵月石 | S193: 1214 | T193: =VLOOKUP(S193,[1]ItemConfig!$A:$C,3,FALSE) -> 地髓晶 | U193: 1215 | V193: =VLOOKUP(U193,[1]ItemConfig!$A:$C,3,FALSE) -> 灵月石
A194: 190 | B194: 190 | C194: 3118 | D194: 312 | E194: 310 | F194: 312 | G194: 144.5 | H194: 144.5 | I194: 3117.521749 | L194: 15 | M194: 1213 | N194: =VLOOKUP(M194,[1]ItemConfig!$A:$C,3,FALSE) -> 混元晶 | O194: 1214 | P194: =VLOOKUP(O194,[1]ItemConfig!$A:$C,3,FALSE) -> 地髓晶 | Q194: 1215 | R194: =VLOOKUP(Q194,[1]ItemConfig!$A:$C,3,FALSE) -> 灵月石 | S194: 1214 | T194: =VLOOKUP(S194,[1]ItemConfig!$A:$C,3,FALSE) -> 地髓晶 | U194: 1215 | V194: =VLOOKUP(U194,[1]ItemConfig!$A:$C,3,FALSE) -> 灵月石
A195: 191 | B195: 191 | C195: 3133 | D195: 313 | E195: 310 | F195: 313 | G195: 145 | H195: 145 | I195: 3133.109358 | L195: 15 | M195: 1213 | N195: =VLOOKUP(M195,[1]ItemConfig!$A:$C,3,FALSE) -> 混元晶 | O195: 1214 | P195: =VLOOKUP(O195,[1]ItemConfig!$A:$C,3,FALSE) -> 地髓晶 | Q195: 1215 | R195: =VLOOKUP(Q195,[1]ItemConfig!$A:$C,3,FALSE) -> 灵月石 | S195: 1214 | T195: =VLOOKUP(S195,[1]ItemConfig!$A:$C,3,FALSE) -> 地髓晶 | U195: 1215 | V195: =VLOOKUP(U195,[1]ItemConfig!$A:$C,3,FALSE) -> 灵月石
A196: 192 | B196: 192 | C196: =ROUND($I196*C$5/$I$5,0) -> 3149 | D196: 315 | E196: 310 | F196: 315 | G196: 145.5 | H196: 145.5 | I196: 3148.774905 | L196: 15 | M196: 1213 | N196: =VLOOKUP(M196,[1]ItemConfig!$A:$C,3,FALSE) -> 混元晶 | O196: 1214 | P196: =VLOOKUP(O196,[1]ItemConfig!$A:$C,3,FALSE) -> 地髓晶 | Q196: 1215 | R196: =VLOOKUP(Q196,[1]ItemConfig!$A:$C,3,FALSE) -> 灵月石 | S196: 1214 | T196: =VLOOKUP(S196,[1]ItemConfig!$A:$C,3,FALSE) -> 地髓晶 | U196: 1215 | V196: =VLOOKUP(U196,[1]ItemConfig!$A:$C,3,FALSE) -> 灵月石
A197: 193 | B197: 193 | C197: 3165 | D197: 316 | E197: 320 | F197: 316 | G197: 146 | H197: 146 | I197: 3164.518779 | L197: 15 | M197: 1213 | N197: =VLOOKUP(M197,[1]ItemConfig!$A:$C,3,FALSE) -> 混元晶 | O197: 1214 | P197: =VLOOKUP(O197,[1]ItemConfig!$A:$C,3,FALSE) -> 地髓晶 | Q197: 1215 | R197: =VLOOKUP(Q197,[1]ItemConfig!$A:$C,3,FALSE) -> 灵月石 | S197: 1214 | T197: =VLOOKUP(S197,[1]ItemConfig!$A:$C,3,FALSE) -> 地髓晶 | U197: 1215 | V197: =VLOOKUP(U197,[1]ItemConfig!$A:$C,3,FALSE) -> 灵月石
A198: 194 | B198: 194 | C198: 3180 | D198: 318 | E198: 320 | F198: 318 | G198: =H198 -> 146.5 | H198: 146.5 | I198: =MAX(I197+I$5*0.01,I197*$J$4) -> 3180.341373 | L198: 15 | M198: 1213 | N198: =VLOOKUP(M198,[1]ItemConfig!$A:$C,3,FALSE) -> 混元晶 | O198: 1214 | P198: =VLOOKUP(O198,[1]ItemConfig!$A:$C,3,FALSE) -> 地髓晶 | Q198: 1215 | R198: =VLOOKUP(Q198,[1]ItemConfig!$A:$C,3,FALSE) -> 灵月石 | S198: 1214 | T198: =VLOOKUP(S198,[1]ItemConfig!$A:$C,3,FALSE) -> 地髓晶 | U198: 1215 | V198: =VLOOKUP(U198,[1]ItemConfig!$A:$C,3,FALSE) -> 灵月石
A199: 195 | B199: 195 | C199: 3196 | D199: 320 | E199: =ROUND($I199*E$5/$I$5*0.1,0)*10 -> 320 | F199: 320 | G199: 147 | H199: =H198+J$3 -> 147 | I199: 3196.24308 | L199: 15 | M199: 1213 | N199: =VLOOKUP(M199,[1]ItemConfig!$A:$C,3,FALSE) -> 混元晶 | O199: 1214 | P199: =VLOOKUP(O199,[1]ItemConfig!$A:$C,3,FALSE) -> 地髓晶 | Q199: 1215 | R199: =VLOOKUP(Q199,[1]ItemConfig!$A:$C,3,FALSE) -> 灵月石 | S199: 1214 | T199: =VLOOKUP(S199,[1]ItemConfig!$A:$C,3,FALSE) -> 地髓晶 | U199: 1215 | V199: =VLOOKUP(U199,[1]ItemConfig!$A:$C,3,FALSE) -> 灵月石
A200: 196 | B200: 196 | C200: 3212 | D200: 321 | E200: 320 | F200: 321 | G200: 147.5 | H200: 147.5 | I200: 3212.224295 | L200: 15 | M200: 1213 | N200: =VLOOKUP(M200,[1]ItemConfig!$A:$C,3,FALSE) -> 混元晶 | O200: 1214 | P200: =VLOOKUP(O200,[1]ItemConfig!$A:$C,3,FALSE) -> 地髓晶 | Q200: 1215 | R200: =VLOOKUP(Q200,[1]ItemConfig!$A:$C,3,FALSE) -> 灵月石 | S200: 1214 | T200: =VLOOKUP(S200,[1]ItemConfig!$A:$C,3,FALSE) -> 地髓晶 | U200: 1215 | V200: =VLOOKUP(U200,[1]ItemConfig!$A:$C,3,FALSE) -> 灵月石
... 104 more rows
